Cogmind - Beta 15 @@@ ROGUE MODE // 2025.06.14 @ 20:35:07 Player: Cog on my mind Result: Defending 0bPrime! Performance ------------- Evolutions (8) 4000 Regions Visited (32) 6400 Robots Destroyed (416) 2080 Value Destroyed (19018) 19018 Prototype IDs (167) 3340 Alien Tech Used (6) 1200 Bonus (32348) 32348 TOTAL SCORE: 68386 Bonus ------- High Alert Combat Kills 7757 Follower Combat Kills 2414 Network Hubs Disabled 400 Registered with UFD 300 Met Optimus in HQ 500 Met Imprinter 300 Met Zhirov 300 Built Enhanced Grunts 300 A7 Reached Mainframe 300 Met R17 at Cetus 500 Hacked Protovariant 500 Met R17 at Research 2000 Met Optimus at Protoforge 1000 Completed Drillbomb Mission10000 Optimus Survived to 0b1 3000 Win 3000 Friendly Fire -223 Cogmind --------- Core Integrity 346/1450 Matter 300/300 Energy 488/790 System Corruption 5% Temperature Cool (0) Movement Flying (36) Location 0bPrime Parts ------- > --- POWER (2) -------- Light Quantum Reactor > --- PROPULSION (8) --- Impulse Thruster Array Impulse Thruster Array Impulse Thruster Array Impulse Thruster Array > --- UTILITY (11) ----- High-capacity Storage Unit Experimental Energy Well Advanced Weight Redist. System Experimental Optical Array Experimental Targeting Computer Advanced Target Analyzer Experimental Core Analyzer Improved Armor Integrity Analyzer Experimental Reaction Control System Centrium Light Armor Plating > --- WEAPON (3) ------- Sigix Broadsword > --- INVENTORY (20) --- Improved Quantum Reactor Improved Thunder Leg Enhanced Biometal Leg Enhanced Biometal Leg Experimental Matter Compressor (500) Advanced Kinecellerator Experimental Reaction Control System Centrium Medium Armor Plating Compact Linear Accelerator Peak State ------------ > --- POWER ------------ Improved Quantum Reactor Improved Quantum Reactor > --- PROPULSION ------- Cooled Gravmag System Cooled Antigrav System Combat Linear Gravjet Combat Linear Gravjet Combat Linear Gravjet Combat Linear Gravjet Combat Linear Gravjet Combat Linear Gravjet > --- UTILITY ---------- High-capacity Storage Unit Advanced Gravity Neutralizer Experimental Active Sensor Suite Experimental Core Analyzer Experimental Core Analyzer Experimental Kinecellerator Experimental Weapon Cycler Experimental Reaction Control System Advanced Phase Shifter Centrium Medium Armor Plating > --- WEAPON ----------- Concept XC Strikerail Concept XC Strikerail Concept XC Strikerail > --- INVENTORY -------- Improved Linear Gravjet Experimental Energy Well Experimental Matter Compressor Centrium Medium Armor Plating Transdimensional Reconstructor Transdimensional Reconstructor Concept XC Strikerail Ragnarok Missile Launcher Sigix Broadsword UFD Drillbomb [Rating: 249] Favorites ----------- Power Light Neutrino Core Engine Heavy Ion Engine Power Core Light Neutrino Core Reactor Heavy Antimatter Reactor Propulsion Combat Linear Gravjet Treads Light Treads Leg Improved Thunder Leg Wheel Wheel Hover Unit Combat Linear Gravjet Flight Unit Impulse Thruster Array Utility A0-MCA's Component Scanner Device Long-range Sensor Array Storage Large Storage Unit Processor A0-MCA's Component Scanner Hackware Advanced Hacking Suite Protection Hardened Medium Armor Plating Weapon Power Sword Energy Gun Improved EM Shotgun Energy Cannon Cooled Plasma Cannon Ballistic Gun Concept XC Strikerail Ballistic Cannon Hypervelocity Mass Driver Launcher Rocket Launcher Special Weapon Plasma Cutter Impact Weapon Power Maul Slashing Weapon Power Sword Piercing Weapon Kinetic Spear Build | -11 -10 -10 -9 -9 -9 -9 -6 -6 -6 -6 -6 -6 -5 -5 -5 -5 -5 -5 -5 -4 -4 -4 -4 -4 -4 -4 -4 -3 -3 -2 -2 -2 ------- Run | Yrd Mat Min Mat Sto Rec Scr Fac Was Fac Low Low Zio Pro Fac Was Fac Upp Upp Zhi Pro Fac Was Fac Ext Cet Arc Hub Res Tes Res Qua Frg Slots Evolved 16 | . . . 2 . . . 6 . . . . . . 2 . . . . . . 2 . . . . . . 2 . 2 . . Power 1 | . . . . . . . . . . . . . . 1 . . . . . . . . . . . . . . . . . . Propulsion 6 | . . . 1 . . . 3 . . . . . . 1 . . . . . . 1 . . . . . . . . . . . Utility 9 | . . . 1 . . . 3 . . . . . . . . . . . . . 1 . . . . . . 2 . 2 . . Weapon . | . . . . . . . . . . . . . . . . . . . . . . . . . . . . . . . . . Parts Attached 298 | 7 9 1 12 19 1 11 22 3 8 2 . . 5 24 . 9 1 3 . . 23 . 9 3 4 2 3 27 6 3 5 76 Power 35 | 1 . . 1 2 1 . 2 . 1 . . . . 6 . . . . . . 1 . . . 2 . . 3 1 1 . 13 Engine 9 | 1 . . 1 2 1 . . . . . . . . 3 . . . . . . . . . . . . . . . . . 1 Core 6 | . . . . . . . 2 . . . . . . 3 . . . . . . . . . . 1 . . . . . . . Reactor 20 | . . . . . . . . . 1 . . . . . . . . . . . 1 . . . 1 . . 3 1 1 . 12 Propulsion 93 | 2 5 . 3 8 . 3 9 2 2 . . . . 7 . 2 . 1 . . 7 . 1 1 1 . . 13 4 . . 22 Treads 19 | 2 2 . 3 8 . 3 . . . . . . . . . . . . . . . . . . . . . 1 . . . . Leg 5 | . 1 . . . . . . . . . . . . . . . . . . . . . . . . . . . . . . 4 Wheel 7 | . 2 . . . . . . . . . . . . . . . . . . . . . . . . . . 5 . . . . Hover 54 | . . . . . . . 9 2 2 . . . . 7 . 2 . 1 . . 7 . 1 1 1 . . 7 4 . . 10 Flight 8 | . . . . . . . . . . . . . . . . . . . . . . . . . . . . . . . . 8 Utility 106 | 2 3 . 2 4 . 6 9 . 3 . . . 3 9 . 4 . 2 . . 8 . 4 . . 2 2 8 1 1 3 30 Device 43 | 1 1 . 1 3 . 1 5 . 1 . . . 2 2 . 1 . 1 . . 2 . 2 . . 2 1 1 . 1 2 13 Storage 8 | 1 2 . . . . 1 . . . . . . . 1 . . . . . . . . . . . . . . 1 . . 2 Processor 17 | . . . 1 . . 2 2 . . . . . . . . . . 1 . . . . . . . . . 3 . . . 8 Hackware 22 | . . . . . . . 1 . 1 . . . . 5 . 3 . . . . 6 . 2 . . . . 3 . . 1 . Protection 16 | . . . . 1 . 2 1 . 1 . . . 1 1 . . . . . . . . . . . . 1 1 . . . 7 Artifact . | . . . . . . . . . . . . . . . . . . . . . . . . . . . . . . . . . Weapon 64 | 2 1 1 6 5 . 2 2 1 2 2 . . 2 2 . 3 1 . . . 7 . 4 2 1 . 1 3 . 1 2 11 Energy Gun 10 | . . . 5 4 . . . . . . . . . . . . . . . . 1 . . . . . . . . . . . Energy Cannon 7 | . . . . . . . 1 . . . . . 1 . . 1 . . . . 3 . . 1 . . . . . . . . Ballistic Gun 17 | 2 1 1 1 . . . . 1 . . . . . . . . . . . . . . . . . . . 2 . . . 9 Ballistic Cannon 8 | . . . . . . . . . . . . . . . . . . . . . . . 4 . . . 1 1 . . 1 1 Launcher 7 | . . . . 1 . . . . . 1 . . 1 . . 1 . . . . 1 . . 1 . . . . . . . 1 Special Weapon 2 | . . . . . . 1 . . . . . . . . . . . . . . . . . . 1 . . . . . . . Impact Weapon 1 | . . . . . . . . . . . . . . . . 1 . . . . . . . . . . . . . . . . Slashing Weapon 9 | . . . . . . 1 1 . 2 1 . . . 1 . . 1 . . . . . . . . . . . . 1 1 . Piercing Weapon 3 | . . . . . . . . . . . . . . 1 . . . . . . 2 . . . . . . . . . . . Special Melee Weapon . | . . . . . . . . . . . . . . . . . . . . . . . . . . . . . . . . . Unidentified Prototypes 7 | . . . . 2 . . . . . . . . . . . . 1 . 1 . . . . . . . . . . . 2 1 Parts Lost 87 | . 1 . . 14 . . . . 1 . . . 2 1 . 3 . . . . 2 . . 1 2 . 14 2 1 . 1 42 Power 13 | . . . . 3 . . . . . . . . 1 . . . . . . . . . . . 1 . 2 1 . . . 5 Propulsion 33 | . 1 . . 3 . . . . 1 . . . 1 . . 1 . . . . 1 . . . 1 . 6 1 1 . . 16 Utility 27 | . . . . 4 . . . . . . . . . 1 . 1 . . . . 1 . . . . . 4 . . . 1 15 Weapon 14 | . . . . 4 . . . . . . . . . . . 1 . . . . . . . 1 . . 2 . . . . 6 Highest Loss Streak 10 | . 1 . . 8 . . . . 1 . . . 2 1 . 1 . . . . 2 . . 1 1 . 10 2 1 . 1 7 To Critical Strikes 3 | . . . . . . . . . . . . . . . . . . . . . . . . . 1 . . . . . . 2 Average Backups 13 | 1 7 13 13 13 12 13 11 12 11 12 13 13 13 14 13 13 13 13 14 14 16 18 19 19 18 19 18 15 18 17 19 10 Power . | . 1 1 1 . . . 1 1 1 1 1 1 . . 1 1 1 1 1 1 1 1 1 1 . 1 1 1 2 2 1 . Propulsion 2 | . 4 5 3 3 4 4 . 1 . . . . . 1 1 1 1 1 1 1 1 2 2 2 1 1 . 1 1 3 3 . Utility 7 | . 1 3 5 6 4 5 7 6 8 9 10 10 10 10 10 9 9 9 10 10 11 11 11 12 12 13 13 8 9 7 8 3 Weapon 2 | . . 3 3 2 2 1 2 3 2 2 2 2 2 1 1 1 2 2 1 1 1 2 2 2 2 2 2 3 4 4 2 2 Tool/Special . | . . . . . . . . . . . . . . . . . . . . . . . . . . . . . . . . . Unused Backups 61 | . 2 . 11 8 . 5 2 2 3 . . . 1 3 . 4 1 . . . 1 . 3 . . . . . 3 . 3 9 Power 5 | . . . 1 . . . . 1 . . . . . . . 1 . . . . . . 1 . . . . . . . . 1 Propulsion 12 | . 2 . 4 1 . . . . 1 . . . . 1 . . . . . . . . 1 . . . . . 1 . 1 . Utility 26 | . . . 2 6 . 2 2 1 2 . . . 1 . . 3 . . . . 1 . 1 . . . . . 2 . 1 2 Weapon 13 | . . . 4 1 . 2 . . . . . . . . . . 1 . . . . . . . . . . . . . 1 4 Tool/Special 5 | . . . . . . 1 . . . . . . . 2 . . . . . . . . . . . . . . . . . 2 Average Slot Usage (%) 92 | . 98 100 99 97 58 80 96 100 100 99 100 100 96 95 100 98 99 97 100 100 94 95 99 99 99 99 91 68 95 92 91 87 Engine 3 | . 14 14 11 10 11 10 2 . . . . . . 1 . . . . . . . . . . . . . . . . . . Core 2 | . . . . . . . 4 6 . . . . 2 7 11 11 11 11 11 11 5 5 5 5 8 5 5 1 . . . . Reactor 2 | . . . . . . . . . 5 6 6 6 3 . . . . . . . 4 5 5 5 1 5 4 4 9 8 8 6 Treads 8 | . 19 28 33 32 22 28 . . . . . . . . . . . . . . . . . . . . . . . . . . Hover 24 | . . . . . . . 39 40 40 40 40 40 37 38 41 40 40 38 38 38 39 40 40 40 39 40 37 9 31 33 33 25 Device 11 | . 14 14 18 18 10 2 7 6 11 12 13 13 11 9 5 10 7 8 11 11 14 15 15 15 15 14 13 7 8 10 14 13 Storage 7 | . 14 14 11 11 11 10 6 6 6 6 6 6 6 5 5 5 5 5 5 5 5 5 5 5 5 5 5 4 4 4 4 5 Processor 9 | . . . 2 . . 7 11 13 13 13 13 13 13 11 11 11 11 11 11 11 10 10 10 10 10 10 8 17 18 16 13 16 Hackware 3 | . . . . . . . 5 6 6 6 6 6 6 4 5 4 5 5 5 5 5 5 5 5 5 5 5 8 9 8 8 1 Protection 2 | . . . . 2 . 8 5 6 . . . . . 1 5 . 2 1 . . . . . . . . . . . 2 . 4 Energy Gun 1 | . . . 19 20 . . . . . . . . . . . . . . . . 1 . . . . . . . . . . . Energy Cannon 1 | . . . . . . . . . . . . . . 2 5 4 4 4 5 5 3 5 2 . 5 5 1 . . . . . Ballistic Gun 3 | . 28 28 2 . . . . 1 . . . . . . . . . . . . . . . . . . . . 9 4 1 8 Ballistic Cannon 1 | . . . . . . . . . . . . . . . . . . . . . . . 6 8 5 5 6 2 3 . 2 . Slashing Weapon 3 | . . . . . . 10 10 10 12 12 13 13 11 7 . . . 3 5 5 1 . . . . . . . . 3 4 . Piercing Weapon 1 | . . . . . . . . . . . . . . . 5 3 . . . . 3 5 4 5 4 5 5 . . . . . Peak Build Rating 249 | 7 8 9 19 29 25 37 65 74 79 82 77 78 82 109 109 109 106 113 111 111 140 138 147 145 148 149 150 168 182 186 215 249 Average Rating 92 | 5 7 8 17 20 22 23 54 70 76 77 77 77 76 90 108 105 105 109 110 110 124 137 143 144 144 148 137 100 172 180 194 210 On Entrance 92 | . 7 8 9 19 8 22 37 64 72 79 78 77 78 73 109 109 105 105 110 111 111 137 138 145 145 148 149 45 168 178 186 215 Naked Turns . | . . . . . . . . . . . . . . . . . . . . . . . . . . . . . . . . . Heaviest Build 125 | 14 29 29 35 42 40 63 51 48 51 54 44 51 51 65 65 65 66 66 60 60 97 81 97 95 100 101 101 102 110 100 104 125 Greatest Support 130 | 40 40 40 60 63 40 73 50 58 60 57 57 57 57 70 69 82 86 79 67 79 106 88 112 116 107 107 117 105 124 124 124 130 Greatest Overweight (x) 7 | . 1 . . . . . 1 . 1 . . . . . . . . . . . 1 . 1 . . . 1 7 1 . . 2 Average Overweight (x) . | . . . . . . . . . . . . . . . . . . . . . . . . . . . . . . . . . Largest Inventory Capacity 20 | 8 15 15 15 15 15 20 20 15 15 15 15 15 15 15 15 15 15 15 15 15 20 20 20 20 20 20 20 20 20 20 20 20 Average Capacity 16 | 7 9 15 15 15 15 16 15 15 15 15 15 15 15 15 15 15 15 15 15 15 19 20 20 20 20 20 20 20 20 20 20 20 Most Carried 20 | 3 11 15 15 15 13 20 20 15 15 15 15 15 15 15 15 15 15 15 15 15 20 20 20 20 19 20 20 20 20 20 20 20 Average Carried 15 | 1 7 14 14 14 12 14 14 14 14 14 15 14 14 14 14 14 14 14 14 14 17 19 19 19 18 19 18 15 19 19 19 16 Final Capacity 20 | 8 15 15 15 15 15 20 15 15 15 15 15 15 15 15 15 15 15 15 15 15 20 20 20 20 20 20 20 20 20 20 20 20 Final Carried 20 | 3 11 15 15 12 13 20 15 15 15 15 15 15 15 15 15 14 15 15 15 15 19 20 20 19 19 20 18 15 20 20 20 9 Class Distribution -------------------- 30% | Mutant 19% | Machinist-Scout 14% | Scout 9% | Scavenger-Mutant 7% | Machinist-Sprinter 4% | Commander-Scout 3% | Scavenger-Gunner 3% | Scavenger-Scout Dominant Class ---------------- Mutant | -10/Materials Mutant | -10/Mines Scavenger-Mutant | -9/Materials Scavenger-Mutant | -9/Storage Mutant | -9/Recycling Mutant | -9/Scraptown Mutant | -6/Factory Mutant | -6/Waste Scout | -6/Factory Scout | -6/Lower Caves Scout | -6/Lower Caves Scout | -6/Zion Scout | -5/Proximity Caves Scout | -5/Factory Machinist-Sprinter | -5/Waste Machinist-Scout | -5/Factory Machinist-Sprinter | -5/Upper Caves Machinist-Sprinter | -5/Upper Caves Machinist-Scout | -5/Zhirov Machinist-Scout | -4/Proximity Caves Machinist-Scout | -4/Factory Machinist-Scout | -4/Waste Machinist-Scout | -4/Factory Machinist-Scout | -4/Extension Commander-Scout | -4/Cetus Commander-Sprinter | -4/Archives Machinist-Scout | -4/Hub_04(d) Scavenger-Mutant | -3/Research Machinist-Scout | -3/Testing Machinist-Scout | -2/Research Machinist-Scout | -2/Quarantine Scavenger-Gunner | -2/Protoforge Resources | -11 -10 -10 -9 -9 -9 -9 -6 -6 -6 -6 -6 -6 -5 -5 -5 -5 -5 -5 -5 -4 -4 -4 -4 -4 -4 -4 -4 -3 -3 -2 -2 -2 ----------- Run | Yrd Mat Min Mat Sto Rec Scr Fac Was Fac Low Low Zio Pro Fac Was Fac Upp Upp Zhi Pro Fac Was Fac Ext Cet Arc Hub Res Tes Res Qua Frg Matter Collected 13398 | 343 354 31 222 379 . 473 375 175 241 336 20 . 253 302 . 405 202 435 143 10 296 30 254 544 209 56 235 883 1318 95 103 4676 Remotely . | . . . . . . . . . . . . . . . . . . . . . . . . . . . . . . . . . Salvage Created 20011 | 132 658 . 1298 1065 . . 623 328 902 188 . . 121 993 . 556 86 87 263 . 747 . 535 991 111 94 302 567 475 123 147 8619 Parts 998 | 3 39 3 67 81 . . 20 7 41 6 . . 5 66 . 39 3 3 4 . 23 . 21 48 7 11 18 25 20 5 4 429 Haulers Intercepted 29 | . 2 . 3 2 . . 1 . 4 . . . 1 5 . 2 . . . . 3 . 4 . . . . 1 1 . . . Recyclers Shooed 5 | . 1 . . 1 . . . . . . . . . . . . . . . . 1 . . . . . . 1 1 . . . Parts Field Recycled . | . . . . . . . . . . . . . . . . . . . . . . . . . . . . . . . . . Retrieved Matter . | . . . . . . . . . . . . . . . . . . . . . . . . . . . . . . . . . Parts Self-Destructed 39 | . . . . . . . . . . 7 . . 25 . . . 1 3 3 . . . . . . . . . . . . . Prevented . | . . . . . . . . . . . . . . . . . . . . . . . . . . . . . . . . . Kills | -11 -10 -10 -9 -9 -9 -9 -6 -6 -6 -6 -6 -6 -5 -5 -5 -5 -5 -5 -5 -4 -4 -4 -4 -4 -4 -4 -4 -3 -3 -2 -2 -2 ------- Run | Yrd Mat Min Mat Sto Rec Scr Fac Was Fac Low Low Zio Pro Fac Was Fac Upp Upp Zhi Pro Fac Was Fac Ext Cet Arc Hub Res Tes Res Qua Frg Combat Hostiles Destroyed 279 | . 13 . 22 19 . . . 1 1 4 . . 2 9 . 19 5 4 . . 7 . . 14 2 . 4 8 9 . 1 135 Melee 12 | . . . . . . . . . 1 . . . 1 . . . 1 . . . 1 . . . . . . . . . 1 7 Guns 149 | . 13 . 17 17 . . . 1 . . . . . . . . . . . . . . . . . . . . 2 . . 99 Cannons 22 | . . . . . . . . . . . . . . 1 . . . . . . 2 . . 9 2 . 1 4 3 . . . AOE 94 | . . . 4 2 . . . . . 4 . . 1 8 . 19 4 4 . . 4 . . 5 . . 2 4 4 . . 29 Classes Destroyed 29 | 2 6 . 2 3 . . . 1 1 . . . 1 1 . 1 . . . . . . . . . . 1 . . . 1 9 Worker 33 | . . . 2 2 . . 1 . 5 . . . . 7 . 6 . . . . 2 . . . . . 5 2 . 1 . . Builder 13 | . 1 . . 3 . . . . . . . . . 4 . 3 . . . . . . 1 1 . . . . . . . . Tunneler 9 | 2 . 1 1 . . . . . . . . . . 2 . 1 . . . . . . 1 . . . . 1 . . . . Hauler 29 | . 2 . 3 2 . . 1 . 4 . . . 1 5 . 2 . . . . 3 . 4 . . . . 1 1 . . . Recycler 15 | 1 1 . . . . . 4 . 2 . . . . . . 1 . . . . 1 . 1 2 . . . 1 1 . . . Carrier 1 | . . . . . . . . . . . . . . . . . . . . . . . . . . . . . . . . 1 Minesweeper 1 | . . . . . . . . . . . . . 1 . . . . . . . . . . . . . . . . . . . Mechanic 1 | . . . . . . . . . . . . . . . . . . . . . . . . . . . . . . . . 1 Operator 12 | . 1 . 1 . . . . . 2 . . . . 1 . 1 . . . . 1 . . . . 3 . . . . 1 1 Drone 14 | . . . . 3 . . . . . . . . . . . . . . . . . . . . . . . . . . . 11 Watcher 22 | . 2 . 3 2 . . . . 1 . . . . 1 . 2 . . . . 2 . 1 2 . . . . 1 2 . 3 Swarmer 62 | . 5 . 3 4 . . . . . 4 . . . . . 14 4 4 . . 4 . . 5 . . . . 1 . 1 13 Cutter 2 | . . . . . . . . . . . . . . . . 2 . . . . . . . . . . . . . . . . Saboteur 5 | . . . . . . . . . . . . . . . . . . . . . . . . . . . . . . . . 5 Grunt 68 | . 8 . 15 5 . . . . . . . . 2 5 . . 1 . . . . . . 4 . . . 1 3 . . 24 Brawler 5 | . . . . . . . . . . . . . . . . . . . . . . . . . . . . . . . . 5 Duelist 9 | . . . . 1 . . . . . . . . . . . . . . . . . . . . . . . . . . . 8 Protector 10 | . . . . 1 . . . . . . . . . . . . . . . . . . . . . . . . . . . 9 Researcher 1 | . . . . . . . . . . . . . . . . . . . . . . . . . . . . . . . 1 . Sentry 19 | . . . 4 8 . . . . . . . . . . . 1 . . . . . . . 3 . . . 2 . . . 1 Demolisher 1 | . . . . . . . . . . . . . . . . . . . . . . . . . . . 1 . . . . . Specialist 2 | . . . . . . . . . . . . . . . . . . . . . . . . . . . . . . . . 2 Hunter 25 | . . . . . . . . . . . . . . 2 . 2 . . . . . . . . . . 2 4 . . . 15 Programmer 22 | . . . . . . . . . 1 . . . . 2 . . . . . . 3 . . 1 . . 1 1 5 . . 8 Compactor 1 | . . . . . . . . 1 . . . . . . . . . . . . . . . . . . . . . . . . Cetus Guard 2 | . . . . . . . . . . . . . . . . . . . . . . . . . 2 . . . . . . . Hotshot 4 | . . . . . . . . . . . . . . . . . . . . . . . . . . . . . . . . 4 Immortal 2 | . . . . . . . . . . . . . . . . . . . . . . . . . . . . . . . . 2 Overlord 1 | . . . . . . . . . . . . . . . . . . . . . . . . . . . . . . . . 1 Striker 20 | . . . . . . . . . . . . . . . . . . . . . . . . . . . . . . . . 20 Executioner 6 | . . . . . . . . . . . . . . . . . . . . . . . . . . . . . . . . 6 Scrapoid 1 | . . . . . . . . . . . . . . . . . . . . . . . . . . . . . . . . 1 Decomposer 2 | . . . . . . . . . . . . . . . . . 2 . . . . . . . . . . . . . . . Thug 1 | . . . . . . . . . . . . . . . . . . . . . . . . 1 . . . . . . . . Best Kill Streak 24 | 2 6 1 10 7 . . 1 1 4 3 . . 3 9 . 14 4 4 . . 5 . 2 7 2 1 8 4 8 3 1 24 Combat Bots Only 22 | . 3 . 7 5 . . . 1 1 3 . . 2 5 . 9 4 4 . . 4 . . 6 2 . 3 4 6 . 1 22 Max Kills in Single Turn 8 | 1 2 1 4 2 . . 1 1 1 3 . . 1 8 . 4 2 2 . . 5 . 1 5 1 1 7 1 2 1 1 6 Gunslinging 1 | . . . 1 1 . . . . . . . . . . . . . . . . . . . . . . . . . . . 1 Exploded 6 | . . . 2 2 . . . . . 3 . . 1 4 . 2 2 2 . . 4 . . 4 . . 2 1 2 . . 6 Melee 1 | . . . . . . . . . 1 . . . 1 . . . 1 . . . 1 . . . . . . . . . 1 1 Uniques/NPCs Destroyed . | . . . . . . . . . . . . . . . . . . . . . . . . . . . . . . . . . Combat | -11 -10 -10 -9 -9 -9 -9 -6 -6 -6 -6 -6 -6 -5 -5 -5 -5 -5 -5 -5 -4 -4 -4 -4 -4 -4 -4 -4 -3 -3 -2 -2 -2 -------- Run | Yrd Mat Min Mat Sto Rec Scr Fac Was Fac Low Low Zio Pro Fac Was Fac Upp Upp Zhi Pro Fac Was Fac Ext Cet Arc Hub Res Tes Res Qua Frg Hostile Shots Fired 1291 | . 60 . 64 154 . . 17 . 49 17 . . 21 1 . 84 11 8 . 2 27 . 15 31 5 2 121 35 82 . 28 457 Missed 536 | . 18 . 25 37 . . 8 . 22 8 . . 6 1 . 38 7 7 . 2 8 . 5 13 1 1 43 15 33 . 19 219 Hits 755 | . 42 . 39 117 . . 9 . 27 9 . . 15 . . 46 4 1 . . 19 . 10 18 4 1 78 20 49 . 9 238 Melee 33 | . . . . 12 . . . . . . . . . . . . . . . . . . . . . . . 2 . . . 19 Projectile 722 | . 42 . 39 105 . . 9 . 27 9 . . 15 . . 46 4 1 . . 19 . 10 18 4 1 78 18 49 . 9 219 AOE 3 | . . . . . . . . . . . . . . . . 1 . . . . . . . . . . . 1 . . . 1 Critical Strikes 40 | . 4 . 2 4 . . 1 . 1 . . . . . . . . . . . 1 . 1 1 2 . 6 . 2 . . 15 Actively Blocked 1 | . . . . . . . . . . . . . . . . . . . . . . . . . . . . . . . . 1 Part Disruptions 2 | . . . . . . . . . . . . . . . . . . 1 . . . . . . . . . . 1 . . . Damage Taken 18483 | . 612 . 526 1970 . . 110 15 380 88 . . 370 . 10 1027 70 73 . . 508 . 252 537 78 21 1604 687 1301 . 271 7973 Core 2711 | . 74 . 51 317 . . 36 . 60 21 . . 55 . . 260 15 11 . . 41 . 23 14 . 21 271 237 251 . . 953 Absorbed by Shields 94 | . . . . . . . . . . . . . . . . . . . . . . . . 44 50 . . . . . . . Redirected to Shielding 154 | . . . . . . . . . . . . . . . . . . . . . . . . . . . . . . . . 154 Regen/Repaired (Parts) 1035 | . . . 36 . . . . 38 . . . . . 53 . 90 . . . . 100 20 62 . . . . 210 112 . . 314 Core Remaining (%) 59 | 100 . 70 . . . 8 . . . . . . 79 . . . . . . 71 . . . . . . 60 . 62 . . 23 Volleys Fired 773 | 22 76 . 58 59 . . 5 24 2 4 . . 4 18 2 63 7 8 . . 22 8 13 34 13 . 23 39 41 . 6 222 Largest 3 | 2 2 . 2 2 . . 1 1 1 1 . . 1 1 1 1 1 1 . . 1 1 2 2 1 . 1 2 3 . 1 3 Hottest 134 | 40 40 . 90 90 . . 90 33 90 36 . . 39 105 35 98 46 46 . . 105 105 112 112 56 . 56 109 134 . 58 122 Shots Fired 1414 | 44 152 . 116 109 . . 5 24 2 4 . . 4 18 2 63 10 9 . . 22 8 18 60 13 . 23 42 71 . 6 589 Gun 1022 | 44 152 . 116 104 . . . 24 . . . . . . . . . . . . 1 . . . . . . . 35 . . 546 Cannon 310 | . . . . . . . 5 . 2 . . . 2 18 2 43 8 7 . . 20 8 18 58 13 . 22 35 28 . 6 15 Launcher 82 | . . . . 5 . . . . . 4 . . 2 . . 20 2 2 . . 1 . . 2 . . 1 7 8 . . 28 Special . | . . . . . . . . . . . . . . . . . . . . . . . . . . . . . . . . . Kinetic 1014 | 44 152 . 30 . . . . 24 . . . . . . . . . . . . . . 6 58 13 . 22 35 63 . 6 561 Thermal 138 | . . . 10 . . . 5 . 2 . . . 2 18 2 43 8 7 . . 21 8 12 . . . . . . . . . Explosive 82 | . . . . 5 . . . . . 4 . . 2 . . 20 2 2 . . 1 . . 2 . . 1 7 8 . . 28 Electromagnetic 180 | . . . 76 104 . . . . . . . . . . . . . . . . . . . . . . . . . . . . Robot Hit Streak 70 | 5 12 . 17 19 . . . 8 . . . . . 3 . 5 3 . . . 10 . 4 11 7 . 3 13 4 . . 70 Robot Miss Streak 5 | 3 5 . 5 4 . . . 2 . . . . . 1 . 3 1 . . . 1 1 2 2 2 . 2 1 5 . . 4 Penetration Max 2 | . . . . . . . . 1 . . . . . . . . . . . . . . . 1 1 . . . 1 . . 2 Secondary Targets 32 | . . . 5 3 . . . . . . . . . . . . . . . . . . . . . . . . . . . 24 Max Gunslinging Chain 1 | . . . 1 1 . . . . . . . . . . . . . . . . . . . . . . . . . . . 1 Shots Hit Robots 1020 | 26 87 . 85 92 . . 12 17 29 3 . . 6 26 . 19 8 1 6 . 25 . 17 28 10 7 6 22 28 5 5 450 Core Hits 683 | 6 37 . 58 66 . . 6 3 11 6 . . 6 28 . 50 6 3 2 . 11 . 8 25 3 3 18 19 20 2 2 284 Critical Kills 42 | . . . . . . . . 1 . . . . . . . . 1 . . . . . 1 9 2 . 1 . 2 . . 25 Critical Parts Destroyed 54 | . . . . . . . . 1 . . . . . . . . 1 . . . . . 2 2 4 . . . 5 . . 39 Critical Strikes 141 | . . . . . . . 1 8 5 . . . . 1 . . 2 . 1 . 7 . 4 16 8 1 1 1 8 . . 77 Destroy 120 | . . . . . . . . 8 . . . . . . . . . . . . . . 3 16 8 . 1 . 7 . . 77 Blast 2 | . . . . . . . . . . . . . . . . . . . . . . . . . . . . 1 1 . . . Smash 2 | . . . . . . . . . . . . . . . . . 2 . . . . . . . . . . . . . . . Sever 9 | . . . . . . . 1 . 5 . . . . 1 . . . . 1 . 1 . . . . . . . . . . . Impale 8 | . . . . . . . . . . . . . . . . . . . . . 6 . 1 . . 1 . . . . . . Melee Attacks 400 | . . . . . . . 34 . 74 7 2 . 13 43 1 40 11 1 6 2 40 . 44 7 8 8 9 . . 9 18 23 Impact 13 | . . . . . . . . . . . . . . . . 1 11 1 . . . . . . . . . . . . . . Slashing 237 | . . . . . . . 34 . 74 7 2 . 13 42 . . . . 6 2 7 . . . . . . . . 9 18 23 Piercing 150 | . . . . . . . . . . . . . . 1 1 39 . . . . 33 . 44 7 8 8 9 . . . . . Sneak Attacks 72 | . . . . . . . 6 . 15 . . . 1 12 . 5 3 . . . 7 . 8 3 . 6 . . . 1 2 3 Combat Hostiles 6 | . . . . . . . . . . . . . . . . . 1 . . . 2 . . 1 . . . . . . 1 1 Follow-up Attacks 5 | . . . . . . . 1 . 2 . . . . 2 . . . . . . . . . . . . . . . . . . Damage Inflicted 59566 | 275 951 14 1716 2314 . . 691 140 1890 504 . . 659 4476 30 4515 945 532 453 . 2164 36 1119 1532 242 556 1057 1646 2153 356 512 28088 Guns 22882 | 275 944 . 1457 1476 . . . 140 . . . . . . . . . . . . 55 . . . . . . . 156 . . 18379 Cannons 3645 | . . . . . . . . . . . . . . 244 30 323 63 . . . 479 36 158 555 242 . 55 788 504 . . 168 Explosions 21247 | . . . 259 838 . . . . . 280 . . 341 2628 . 3386 357 426 . . 602 . . 545 . . 914 858 1470 . . 8343 Melee 11748 | . . . . . . . 691 . 1890 224 . . 318 1604 . 806 525 106 453 . 1028 . 961 432 . 556 88 . . 356 512 1198 Ramming 44 | . 7 14 . . . . . . . . . . . . . . . . . . . . . . . . . . 23 . . . Kinetic 22519 | 275 944 . 189 . . . . 140 . . . . . . . . . . . . . . 124 555 242 . 55 788 660 . . 18547 Thermal 3855 | . . . 348 247 . . . . . . . . . 1933 30 323 63 . . . 737 36 34 104 . . . . . . . . Explosive 17998 | . . . . 591 . . . . . 280 . . 341 939 . 3328 357 426 . . 399 . . 441 . . 225 858 1470 . . 8343 Electromagnetic 3402 | . . . 1179 1476 . . . . . . . . . . . 58 . . . . . . . . . . 689 . . . . . Impact 631 | . . . . . . . . . . . . . . . . . 525 106 . . . . . . . . . . . . . . Slashing 7357 | . . . . . . . 691 . 1890 224 . . 318 1548 . . . . 453 . 167 . . . . . . . . 356 512 1198 Piercing 3760 | . . . . . . . . . . . . . . 56 . 806 . . . . 861 . 961 432 . 556 88 . . . . . Highest Corruption 16 | . . . . 6 6 . . . 2 . . . . . 5 8 8 8 . . 4 14 16 7 7 7 2 . 9 . . 5 Average Corruption 6 | . . . . 5 6 . . . 1 . . . . . 5 5 8 6 . . 2 12 11 7 7 4 1 . 4 . . 3 Corruption Purged 27 | . . . . . . . . . 2 . . . . . . . . 8 . . . . 10 . . 7 . . . . . . Corruption Blocked . | . . . . . . . . . . . . . . . . . . . . . . . . . . . . . . . . . Effects 226 | . . . . 27 9 . . . 1 . . . . . 2 22 20 10 . . 6 4 29 37 8 9 2 . 16 . . 24 Message Errors 48 | . . . . 3 1 . . . . . . . . . . 5 4 3 . . 2 . 9 9 2 3 . . 4 . . 3 Matter Fused 46 | . . . . 5 3 . . . . . . . . . . 4 1 . . . 3 . 4 8 2 1 2 . 4 . . 9 Heat Flow Errors 29 | . . . . 5 2 . . . . . . . . . . 2 3 3 . . . 1 4 5 3 . . . . . . 1 Energy Discharges 26 | . . . . 1 1 . . . 1 . . . . . . 3 2 2 . . . 1 1 4 1 2 . . 3 . . 4 Parts Rejected 2 | . . . . . . . . . . . . . . . 1 . . . . . . . . . . 1 . . . . . . Parts Fused 3 | . . . . . . . . . . . . . . . . 1 . . . . . . 1 1 . . . . . . . . Data Loss (minor) 33 | . . . . 5 2 . . . . . . . . . 1 6 3 . . . 1 . 4 4 . 1 . . 2 . . 4 Data Loss (major) 9 | . . . . 1 . . . . . . . . . . . . 3 1 . . . . 1 1 . 1 . . . . . 1 Misfires 10 | . . . . . . . . . . . . . . . . . 3 1 . . . 1 2 3 . . . . . . . . Alerts 10 | . . . . 4 . . . . . . . . . . . 1 1 . . . . . 1 2 . . . . . . . 1 Misdirections 2 | . . . . . . . . . . . . . . . . . . . . . . . 2 . . . . . . . . . Weapon Failures 8 | . . . . 3 . . . . . . . . . . . . . . . . . 1 . . . . . . 3 . . 1 Overload Shots 4 | . . . . . . . . . . . . . . 3 . . . . . . 1 . . . . . . . . . . . Overflow Damage 3835 | . . . . 18 . . 59 . 233 58 . . 13 597 . 371 152 158 168 . 499 . 128 66 . 188 67 11 136 96 168 649 Projectiles 40 | . . . . . . . . . . . . . . 22 . . . . . . 7 . . . . . . . 1 . . 10 Explosions 1138 | . . . . 18 . . . . . . . . 13 318 . 144 . 64 . . 23 . . 35 . . 49 11 135 . . 328 Melee 2657 | . . . . . . . 59 . 233 58 . . . 257 . 227 152 94 168 . 469 . 128 31 . 188 18 . . 96 168 311 Knockbacks 11 | . . . . . . . . . . . . . . . . . 2 . . . . . . 2 . . . 2 3 . . 2 Impact 2 | . . . . . . . . . . . . . . . . . 2 . . . . . . . . . . . . . . . Kinetic 7 | . . . . . . . . . . . . . . . . . . . . . . . . 2 . . . 2 2 . . 1 Secondary 2 | . . . . . . . . . . . . . . . . . . . . . . . . . . . . . 1 . . 1 Self-Inflicted Damage 721 | . . . 32 210 . . . . . 22 . . . . . 70 . 34 . . . . . . . . 134 . 11 . . 208 Shots 14 | . . . 1 6 . . . . . 1 . . . . . 1 . 1 . . . . . . . . 2 . . . . 2 Rammed 2 | . 1 . . . . . . . . . . . . . . . . . . . . . . . . . . . 1 . . . Targets Rammed 3 | . 1 1 . . . . . . . . . . . . . . . . . . . . . . . . . . 1 . . . Kicked . | . . . . . . . . . . . . . . . . . . . . . . . . . . . . . . . . . Crushed 1 | . . 1 . . . . . . . . . . . . . . . . . . . . . . . . . . . . . . Highest Temperature 551 | . 61 . 135 309 227 . 162 4 48 13 . . 12 140 8 551 188 286 . . 196 266 277 185 224 5 328 262 272 2 . 177 Average Temperature 67 | . 12 . 41 126 103 . 66 2 16 6 . . 6 21 6 103 75 93 . . 51 82 73 84 57 5 97 110 41 1 . 106 Received Heat Transfer 2020 | . 246 . 255 570 . . 9 . 90 . . . 54 . . 87 27 . . . 9 . 18 108 9 . 154 39 27 . 27 291 Effects 7 | . . . . . . . . . . . . . . . . 4 . . . . . . 1 . . . 2 . . . . . Shutdowns 1 | . . . . . . . . . . . . . . . . 1 . . . . . . . . . . . . . . . . Energy Bleed 1 | . . . . . . . . . . . . . . . . . . . . . . . 1 . . . . . . . . . Matter Decay 2 | . . . . . . . . . . . . . . . . 1 . . . . . . . . . . 1 . . . . . Short Circuit 1 | . . . . . . . . . . . . . . . . . . . . . . . . . . . 1 . . . . . Damage (minor) 1 | . . . . . . . . . . . . . . . . 1 . . . . . . . . . . . . . . . . Damage (core) 1 | . . . . . . . . . . . . . . . . 1 . . . . . . . . . . . . . . . . Siege Activations . | . . . . . . . . . . . . . . . . . . . . . . . . . . . . . . . . . Martial Activations . | . . . . . . . . . . . . . . . . . . . . . . . . . . . . . . . . . Shielding Activations . | . . . . . . . . . . . . . . . . . . . . . . . . . . . . . . . . . Robots Disrupted . | . . . . . . . . . . . . . . . . . . . . . . . . . . . . . . . . . Combat Hostiles . | . . . . . . . . . . . . . . . . . . . . . . . . . . . . . . . . . Robots Corrupted 2 | . . . 1 . . . . . . . . . . . . . . . . . . . . . . . 1 . . . . . Combat Hostiles 2 | . . . 1 . . . . . . . . . . . . . . . . . . . . . . . 1 . . . . . Parts Fried 12 | . . . 5 7 . . . . . . . . . . . . . . . . . . . . . . . . . . . . Impact Corruptions 11 | . . . . . . . . . . . . . . . . . 4 7 . . . . . . . . . . . . . . Robots Melted . | . . . . . . . . . . . . . . . . . . . . . . . . . . . . . . . . . Combat Hostiles . | . . . . . . . . . . . . . . . . . . . . . . . . . . . . . . . . . Parts Melted 3 | . . . 1 . . . . . . . . . . . . 1 . . . . 1 . . . . . . . . . . . Heat Transferred 3679 | . . . 522 316 . . . . . . . . . 1360 50 450 100 . . . 607 37 37 200 . . . . . . . . Parts Sabotaged 2 | . . . . . . . . . . . . . . . . . . . . . . . . . . . . . . . . 2 Parts Stolen . | . . . . . . . . . . . . . . . . . . . . . . . . . . . . . . . . . Parts Stripped . | . . . . . . . . . . . . . . . . . . . . . . . . . . . . . . . . . Power Chain Reactions 10 | . . . 5 4 . . . . . . . . . . . . . . . . . . . 1 . . . . . . . . Alert | -11 -10 -10 -9 -9 -9 -9 -6 -6 -6 -6 -6 -6 -5 -5 -5 -5 -5 -5 -5 -4 -4 -4 -4 -4 -4 -4 -4 -3 -3 -2 -2 -2 ------- Run | Yrd Mat Min Mat Sto Rec Scr Fac Was Fac Low Low Zio Pro Fac Was Fac Upp Upp Zhi Pro Fac Was Fac Ext Cet Arc Hub Res Tes Res Qua Frg Maximum Alert Level 5 | . . . 1 1 . . . . 1 . . . . 4 2 5 . . . . 1 . 2 1 1 1 3 2 1 . 1 5 Low Security (%) 57 | 100 100 100 62 62 100 . 100 100 60 . . . . 50 . . . . . . 91 100 74 78 4 26 89 . 48 100 81 20 Level 1 21 | . . . 37 37 . . . . 39 . . . . 1 3 38 . . . . 8 . 24 21 95 73 . 36 51 . 18 3 Level 2 6 | . . . . . . . . . . . . . . 1 96 32 . . . . . . 1 . . . . 63 . . . . Level 3 5 | . . . . . . . . . . . . . . 40 . 17 . . . . . . . . . . 10 . . . . 12 Level 4 1 | . . . . . . . . . . . . . . 5 . 6 . . . . . . . . . . . . . . . 4 Level 5 8 | . . . . . . . . . . . . . . . . 5 . . . . . . . . . . . . . . . 57 High Security . | . . . . . . . . . . . . . . . . . . . . . . . . . . . . . . . . . Max Security . | . . . . . . . . . . . . . . . . . . . . . . . . . . . . . . . . . Peak Influence 3126 | 5 148 15 344 283 98 . 138 45 382 . . . . 1181 439 1790 . . . . 243 87 431 394 390 306 857 516 362 137 337 3126 Initial 409 | . 3 15 . 132 98 . . 45 . . . . . . 409 300 . . . . . 63 . 58 192 144 58 407 237 137 15 15 Average 405 | 1 61 . 181 155 39 . 23 5 169 . . . . 479 414 670 . . . . 72 25 137 110 295 233 190 424 185 26 85 1695 Influence Increases 18229 | 15 433 5 861 717 65 . 241 23 995 105 . . 228 1638 80 1905 215 110 10 . 727 60 846 1047 398 222 1321 446 729 86 447 4254 Destroy 0b10 Robot/C 6300 | . 260 . 520 400 . . . . 300 80 . . 80 180 . 380 100 80 . . 200 . 160 460 160 80 160 160 180 . 40 2320 Destroy 0b10 Robot/NC 845 | 15 35 5 50 50 . . 30 . 90 . . . 10 100 . 80 . 5 10 . 55 . 40 25 10 15 35 25 15 15 5 125 Destroy Leader 1152 | . 68 . 152 128 . . 2 . 70 10 . . . 42 . 68 10 10 . . 60 . 30 34 . . 52 42 34 4 . 336 Allied During Kill 952 | . . . 17 10 . . . . 135 . . . 18 . . . . . . . . . . 370 170 95 137 . . . . . Trap Triggered on 0b10 70 | . . . . . . . . . . . . . . 50 . 10 . . . . . . . . . . . . . . 10 . Successful Hack 746 | . 24 . 27 14 5 . 24 . 105 . . . . 95 . 49 . . . . 7 . 62 44 . . 30 59 99 28 8 66 Select Force Hacks 120 | . 30 . 30 . 60 . . . . . . . . . . . . . . . . . . . . . . . . . . . Disable Machine 1455 | . . . 45 45 . . 15 . 105 . . . . 435 . 180 . . . . 90 . 15 . 15 30 150 . 135 . 45 150 Destroy Structure 3184 | . 1 . 20 40 . . 20 23 115 . . . . 526 80 448 . . . . 120 60 164 54 28 2 472 160 146 9 39 657 Partial Spotted 420 | . . . . . . . . . 15 . . . . 15 . 45 . . . . 30 . 90 . . . 90 . 30 30 15 60 Lose Combat Pursuer 2985 | . 15 . . 30 . . 150 . 60 15 . . 120 195 . 645 105 15 . . 165 . 285 60 15 . 195 . 90 . 285 540 Influence Decreases 15103 | 10 399 44 546 779 318 . 111 153 632 377 91 . 228 468 821 549 915 477 728 . 546 241 727 822 382 416 710 800 907 304 446 1156 Entered New Map 4423 | . 2 24 . 183 155 . . 85 . 135 19 . . . 761 129 661 207 718 . . 118 . 61 152 216 108 370 186 108 12 13 Time Decay 6522 | 10 387 20 376 416 163 . 111 31 412 222 72 . 125 308 30 380 254 270 10 . 276 30 347 285 170 180 160 410 252 49 134 632 Search Patrol Dispatched 150 | . . . . . . . . . . . . . . . . . . . . . . . 150 . . . . . . . . . Lost Part 840 | . 10 . . 140 . . . . 10 . . . . 10 . 30 . . . . 20 . . 10 20 . 140 20 10 . . 420 Lost Ally 1256 | . . . 20 40 . . . 37 210 20 . . 103 . 30 10 . . . . 100 93 80 91 40 20 302 . 40 . . 20 Purge Threat 1912 | . . . 150 . . . . . . . . . . 150 . . . . . . 150 . 150 375 . . . . 419 147 300 71 Squads Dispatched 155 | . 3 . 4 4 . . 8 . 16 . . . 1 18 . 22 . . . . 20 . 14 . . . 11 9 8 4 5 8 Investigation 79 | . 2 . 4 . . . 5 . 10 . . . 1 9 . 9 . . . . 14 . 8 . . . 4 6 2 3 1 1 Extermination 24 | . . . . . . . 2 . 2 . . . . 4 . 2 . . . . 3 . 3 . . . 1 1 2 1 1 2 Reinforcement 37 | . 1 . . . . . 1 . 2 . . . . 4 . 7 . . . . 3 . 3 . . . 3 2 3 . 3 5 Assault 9 | . . . . 2 . . . . 2 . . . . 1 . 3 . . . . . . . . . . . . 1 . . . Garrison 6 | . . . . 2 . . . . . . . . . . . 1 . . . . . . . . . . 3 . . . . . Intercept . | . . . . . . . . . . . . . . . . . . . . . . . . . . . . . . . . . Searches Triggered 1 | . . . . . . . . . . . . . . . . . . . . . . . 1 . . . . . . . . . Construction Impeded 3 | . . . . . . . . . 1 . . . . . . 2 . . . . . . . . . . . . . . . . Haulers Reinforced 5 | . . . . . . . . . . . . . . 1 . 1 . . . . . . 2 . . . . 1 . . . . Active Scanning Responses . | . . . . . . . . . . . . . . . . . . . . . . . . . . . . . . . . . Cargo Convoy Interrupts 1 | . . . . . . . . . . . . . . . . 1 . . . . . . . . . . . . . . . . Stealth | -11 -10 -10 -9 -9 -9 -9 -6 -6 -6 -6 -6 -6 -5 -5 -5 -5 -5 -5 -5 -4 -4 -4 -4 -4 -4 -4 -4 -3 -3 -2 -2 -2 --------- Run | Yrd Mat Min Mat Sto Rec Scr Fac Was Fac Low Low Zio Pro Fac Was Fac Upp Upp Zhi Pro Fac Was Fac Ext Cet Arc Hub Res Tes Res Qua Frg Distress Signals 56 | . 1 . 1 . . . 3 . . . . . 1 3 . 5 . . . . 5 . 2 . 2 . 7 8 4 . . 14 Communications Jammed . | . . . . . . . . . . . . . . . . . . . . . . . . . . . . . . . . . Distress Signals . | . . . . . . . . . . . . . . . . . . . . . . . . . . . . . . . . . Times Spotted 721 | . 29 . 32 27 . . 11 6 19 5 . . 21 20 6 56 7 2 . 1 16 6 19 17 10 11 40 13 35 2 24 286 Peak Tracking Total 31 | . 5 . 5 10 . . 9 6 5 4 . . 9 6 5 31 3 2 . 1 8 6 10 2 5 1 14 5 10 1 10 20 Tactical Retreats 88 | . 1 . . 1 . . 5 . 3 1 . . 3 10 . 12 5 1 . . 6 . 6 4 1 . 4 . 4 . 6 15 Traps | -11 -10 -10 -9 -9 -9 -9 -6 -6 -6 -6 -6 -6 -5 -5 -5 -5 -5 -5 -5 -4 -4 -4 -4 -4 -4 -4 -4 -3 -3 -2 -2 -2 ------- Run | Yrd Mat Min Mat Sto Rec Scr Fac Was Fac Low Low Zio Pro Fac Was Fac Upp Upp Zhi Pro Fac Was Fac Ext Cet Arc Hub Res Tes Res Qua Frg Traps Triggered 41 | . 1 . 2 5 . . 3 . 3 . . . . 1 . 1 . 1 . . 4 . 5 3 . . . 4 3 1 1 3 Indirectly . | . . . . . . . . . . . . . . . . . . . . . . . . . . . . . . . . . Trap Hack Attempts . | . . . . . . . . . . . . . . . . . . . . . . . . . . . . . . . . . Triggered . | . . . . . . . . . . . . . . . . . . . . . . . . . . . . . . . . . Disarmed . | . . . . . . . . . . . . . . . . . . . . . . . . . . . . . . . . . Reprogrammed 12 | . . . . . . . . . . . . . . 6 . . . . . . . . . . . . . . . . 6 . Reused 7 | . . . . . . . . . . . . . . 5 . 1 . . . . . . . . . . . . . . 1 . Traps Extracted . | . . . . . . . . . . . . . . . . . . . . . . . . . . . . . . . . . Installed 3 | . . . . . . . . . 1 . . . . . . 2 . . . . . . . . . . . . . . . . Triggered 7 | . . . . . . . . . . . . . . 5 . 1 . . . . . . . . . . . . . . 1 . Most Traps Carried 3 | . . . . . . 1 1 1 1 . . . 3 3 3 3 1 1 1 1 . . . . . . . . . . . . Objects Rigged 20 | . . . . . . . . . . . . . . 20 . . . . . . . . . . . . . . . . . . Exploded 8 | . . . . . . . . . . . . . . 8 . . . . . . . . . . . . . . . . . . Machines | -11 -10 -10 -9 -9 -9 -9 -6 -6 -6 -6 -6 -6 -5 -5 -5 -5 -5 -5 -5 -4 -4 -4 -4 -4 -4 -4 -4 -3 -3 -2 -2 -2 ---------- Run | Yrd Mat Min Mat Sto Rec Scr Fac Was Fac Low Low Zio Pro Fac Was Fac Upp Upp Zhi Pro Fac Was Fac Ext Cet Arc Hub Res Tes Res Qua Frg Machines Disabled 99 | . . . 3 3 . . 1 . 7 . . . 1 29 . 12 . . . . 6 . 1 . 2 2 10 . 9 . 3 10 Max in Single Turn 9 | . . . 1 1 . . 1 . 1 . . . 1 8 . 3 . . . . 3 . . . 1 . 9 . 2 . 1 2 Garrison Access 9 | . . . . . . . . . 2 . . . . 2 . 1 . . . . 1 . 2 . . . . 1 . . . . Network Hub 2 | . . . . . . . . . . . . . . . . . . . . . . . . . . . 2 . . . . . Machines Repaired . | . . . . . . . . . . . . . . . . . . . . . . . . . . . . . . . . . Machines Dismantled 1 | . . . . . . . . . . . . . . . . . . . . . . . . . 1 . . . . . . . Machines Sabotaged . | . . . . . . . . . . . . . . . . . . . . . . . . . . . . . . . . . Overloaded Fab Kills . | . . . . . . . . . . . . . . . . . . . . . . . . . . . . . . . . . Hacking | -11 -10 -10 -9 -9 -9 -9 -6 -6 -6 -6 -6 -6 -5 -5 -5 -5 -5 -5 -5 -4 -4 -4 -4 -4 -4 -4 -4 -3 -3 -2 -2 -2 --------- Run | Yrd Mat Min Mat Sto Rec Scr Fac Was Fac Low Low Zio Pro Fac Was Fac Upp Upp Zhi Pro Fac Was Fac Ext Cet Arc Hub Res Tes Res Qua Frg Machines Accessed 218 | . 5 1 8 8 4 4 7 . 32 2 . . 1 25 . 19 . . 4 . 23 . 24 14 2 . 6 8 10 4 1 6 Terminals 109 | . 4 . 6 7 2 . 2 . 15 . . . 1 11 . 6 . . . . 7 . 10 14 2 . 5 2 7 2 1 5 Fabricators 25 | . . . . . . . . . 5 . . . . 5 . 3 . . . . 5 . 4 . . . . 1 2 . . . Repair Stations 13 | . . . 1 . . . . . . . . . . 2 . 2 . . . . 4 . 1 . . . . 2 1 . . . Recycling Units 39 | . 1 . 1 . 2 . 5 . 8 . . . . 2 . 5 . . . . 5 . 5 . . . . 2 . 2 . 1 Scanalyzers 7 | . . . . . . . . . 2 . . . . 2 . 2 . . . . . . 1 . . . . . . . . . Garrison Access 14 | . . . . 1 . . . . 2 . . . . 3 . 1 . . . . 2 . 3 . . . 1 1 . . . . Total Hacks 580 | . 17 1 23 18 6 19 13 . 66 2 . . 5 75 . 50 . . 17 . 58 . 55 28 3 . 16 22 36 15 7 28 Successful 341 | . 8 1 14 6 4 19 4 . 40 2 . . 5 51 . 23 . . 17 . 34 . 30 15 1 . 6 14 15 9 5 18 Failed 239 | . 9 . 9 12 2 . 9 . 26 . . . . 24 . 27 . . . . 24 . 25 13 2 . 10 8 21 6 2 10 Catastrophic 53 | . 1 . 1 1 2 . 1 . 6 . . . . 6 . 5 . . . . 7 . 9 2 1 . 2 . 6 2 . 1 Database Lockouts . | . . . . . . . . . . . . . . . . . . . . . . . . . . . . . . . . . Manual 268 | . 12 . 14 12 3 . 11 . 29 . . . . 25 . 28 . . . . 35 . 28 6 2 . 9 12 13 8 4 17 Terminals 335 | . 16 . 21 15 4 . 3 . 40 . . . 5 42 . 16 . . . . 22 . 23 28 3 . 12 10 30 12 7 26 Fabricators 87 | . . . . . . . . . 9 . . . . 21 . 12 . . . . 21 . 13 . . . . 6 5 . . . Repair Stations 17 | . . . 1 . . . . . . . . . . 2 . 3 . . . . 7 . 1 . . . . 2 1 . . . Recycling Units 57 | . 1 . 1 . 2 . 10 . 11 . . . . 2 . 10 . . . . 6 . 6 . . . . 3 . 3 . 2 Scanalyzers 23 | . . . . . . . . . 4 . . . . 4 . 6 . . . . . . 9 . . . . . . . . . Garrison Access 22 | . . . . 3 . . . . 2 . . . . 4 . 3 . . . . 2 . 3 . . . 4 1 . . . . Terminal Hacks 156 | . 5 1 8 4 2 19 1 . 18 2 . . 5 16 . . . . 17 . 6 . 6 12 1 . 1 3 9 6 5 9 Record 30 | . . . 1 . . 18 . . . . . . 5 . . . . . 5 . . . . . 1 . . . . . . . Part Schematic 12 | . . . . 1 . . . . 1 . . . . 4 . . . . 4 . 1 . . . . . . . 1 . . . Robot Analysis 9 | . 2 . . . . . . . 3 . . . . . . . . . 4 . . . . . . . . . . . . . Prototype ID Bank 21 | . 3 . 2 2 2 . . . 6 . . . . 1 . . . . 4 . . . . . . . . . . . 1 . Open Door 12 | . . 1 . 1 . . . . . 2 . . . . . . . . . . . . 1 6 . . . . . 1 . . Level Access Points 1 | . . . . . . . . . . . . . . . . . . . . . . . . . . . . . 1 . . . Branch Access Points 7 | . . . 1 . . . . . 1 . . . . 1 . . . . . . 1 . 1 . . . . 1 . 1 . . Emergency Access Points 1 | . . . . . . . . . . . . . . . . . . . . . . . . . . . . . . . . 1 Machine Index 1 | . . . . . . . . . . . . . . . . . . . . . . . 1 . . . . . . . . . Terminal Index 9 | . . . 1 . . . . . 1 . . . . 1 . . . . . . 1 . 1 1 . . 1 1 . . . 1 Recycling Unit Index 1 | . . . . . . . . . . . . . . . . . . . . . . . . . . . . . . . . 1 Alert Level 4 | . . . 1 . . . . . . . . . . . . . . . . . . . . 1 . . . . . 1 . 1 Unreport Threat 14 | . . . 1 . . . . . . . . . . 1 . . . . . . 1 . 1 3 . . . . 3 1 2 1 Locate Traps 6 | . . . . . . . . . 1 . . . . 2 . . . . . . 1 . . . . . . . . . 1 1 Reprogram Traps 2 | . . . . . . . . . . . . . . 1 . . . . . . . . . . . . . . . . 1 . Maintenance Status 1 | . . . . . . . . . . . . . . . . . . . . . . . . . . . . . . . . 1 Surveillance Status 1 | . . . . . . . . . . . . . . . . . . . . . . . . . . . . . . 1 . . Patrol Status 8 | . . . 1 . . . 1 . 1 . . . . 1 . . . . . . . . . 1 . . . 1 1 . . 1 Extermination Status 1 | . . . . . . . . . 1 . . . . . . . . . . . . . . . . . . . . . . . Recall Investigation 1 | . . . . . . . . . . . . . . . . . . . . . . . . . . . . . 1 . . . Recall Extermination 3 | . . . . . . . . . 2 . . . . 1 . . . . . . . . . . . . . . . . . . Recall Reinforcements 1 | . . . . . . . . . . . . . . 1 . . . . . . . . . . . . . . . . . . Hauler Manifests 7 | . . . . . . . . . 1 . . . . 2 . . . . . . 1 . 1 . . . . . 1 1 . . Registered Prototypes 1 | . . . . . . . . . . . . . . . . . . . . . . . . . . . . . . . . 1 Proto ID Catalog 1 | . . . . . . 1 . . . . . . . . . . . . . . . . . . . . . . . . . . Protovariant Controls 1 | . . . . . . . . . . . . . . . . . . . . . . . . . . . . . 1 . . . Fabricator Hacks 41 | . . . . . . . . . 3 . . . . 14 . 5 . . . . 9 . 4 . . . . 4 2 . . . Network Status 4 | . . . . . . . . . . . . . . 1 . 1 . . . . 1 . 1 . . . . . . . . . Load Schematic 24 | . . . . . . . . . 2 . . . . 9 . 3 . . . . 5 . 2 . . . . 2 1 . . . Build 13 | . . . . . . . . . 1 . . . . 4 . 1 . . . . 3 . 1 . . . . 2 1 . . . Repair Station Hacks 2 | . . . . . . . . . . . . . . . . 2 . . . . . . . . . . . . . . . . Scan Component 1 | . . . . . . . . . . . . . . . . 1 . . . . . . . . . . . . . . . . Repair 1 | . . . . . . . . . . . . . . . . 1 . . . . . . . . . . . . . . . . Recycling Unit Hacks . | . . . . . . . . . . . . . . . . . . . . . . . . . . . . . . . . . Scanalyzer 17 | . . . . . . . . . 4 . . . . 4 . 3 . . . . . . 6 . . . . . . . . . Insert Component 10 | . . . . . . . . . 2 . . . . 2 . 3 . . . . . . 3 . . . . . . . . . Analyze 7 | . . . . . . . . . 2 . . . . 2 . . . . . . . . 3 . . . . . . . . . Garrison Access Hacks 7 | . . . . . . . . . 1 . . . . 2 . . . . . . 1 . 2 . . . . 1 . . . . Seal Access 7 | . . . . . . . . . 1 . . . . 2 . . . . . . 1 . 2 . . . . 1 . . . . Unauthorized Hacks 118 | . 3 . 6 2 2 . 3 . 14 . . . . 15 . 13 . . . . 18 . 12 3 . . 5 6 4 3 . 9 Terminals 49 | . 2 . 4 2 . . . . 3 . . . . 6 . 4 . . . . 4 . 2 3 . . 5 2 3 1 . 8 Track 8 | . . . 1 . . . . . . . . . . 2 . 1 . . . . . . . . . . . . 1 . . 3 Assimilate 4 | . . . . . . . . . . . . . . . . 1 . . . . 1 . . . . . 1 . . . . 1 Botnet 31 | . 2 . 3 2 . . . . 2 . . . . 2 . 2 . . . . 3 . 2 3 . . 2 2 2 1 . 3 Detonate 2 | . . . . . . . . . . . . . . 2 . . . . . . . . . . . . . . . . . . Disrupt 1 | . . . . . . . . . 1 . . . . . . . . . . . . . . . . . . . . . . . Operators 1 | . . . . . . . . . . . . . . . . . . . . . . . . . . . . . . . . 1 Sabotage 2 | . . . . . . . . . . . . . . . . . . . . . . . . . . . 2 . . . . . Fabricators 24 | . . . . . . . . . 3 . . . . 5 . 5 . . . . 6 . 5 . . . . . . . . . Report 3 | . . . . . . . . . . . . . . . . 1 . . . . 1 . 1 . . . . . . . . . Prioritize 4 | . . . . . . . . . . . . . . 1 . 1 . . . . 1 . 1 . . . . . . . . . Liberate 1 | . . . . . . . . . . . . . . . . . . . . . 1 . . . . . . . . . . . Haulers 5 | . . . . . . . . . 1 . . . . 1 . 1 . . . . 1 . 1 . . . . . . . . . Recompile 11 | . . . . . . . . . 2 . . . . 3 . 2 . . . . 2 . 2 . . . . . . . . . Repair Stations 11 | . . . 1 . . . . . . . . . . 2 . 1 . . . . 3 . 1 . . . . 2 1 . . . Patch 11 | . . . 1 . . . . . . . . . . 2 . 1 . . . . 3 . 1 . . . . 2 1 . . . Recycling Units 34 | . 1 . 1 . 2 . 3 . 8 . . . . 2 . 3 . . . . 5 . 4 . . . . 2 . 2 . 1 Tunnel 4 | . 1 . 1 . 2 . . . . . . . . . . . . . . . . . . . . . . . . . . . Fedlink 28 | . . . . . . . 3 . 8 . . . . 2 . 3 . . . . 4 . 3 . . . . 2 . 2 . 1 Scrapoids 2 | . . . . . . . . . . . . . . . . . . . . . 1 . 1 . . . . . . . . . Scanalyzers . | . . . . . . . . . . . . . . . . . . . . . . . . . . . . . . . . . Garrison Access . | . . . . . . . . . . . . . . . . . . . . . . . . . . . . . . . . . Data Cores Recovered 6 | . . . 1 . . . . . 2 . . . . 1 . . . . . . 1 . . . . . . . . . . 1 Used 2 | . . . . . . . . . 1 . . . . . . . . . . . 1 . . . . . . . . . . . Hacking Detections 137 | . 4 . 6 8 2 . 4 . 22 . . . 1 19 . 12 . . . . 12 . 14 8 1 . 5 4 8 1 1 5 Full Trace Events 17 | . 1 . . . 1 . 2 . . . . . 1 2 . 3 . . . . 4 . 1 . . . 2 . . . . . Feedback Events 3 | . . . . . . . . . . . . . . 1 . . . . . . 1 . . . . . 1 . . . . . Corruption 1 | . . . . . . . . . . . . . . . . . . . . . . . . . . . 1 . . . . . Hackware Fried 2 | . . . . . . . . . . . . . . 1 . . . . . . 1 . . . . . . . . . . . Feedback Blocked . | . . . . . . . . . . . . . . . . . . . . . . . . . . . . . . . . . Robot Schematics Acquired 2 | . . . . . . . . . . . . . . . . . . . . . . . . . . . . . 2 . . . Robots Built 6 | . . . . . . . . . 2 . . . . . . . . . . . 2 . . . . . . . 2 . . . Authchips . | . . . . . . . . . . . . . . . . . . . . . . . . . . . . . . . . . Time 202 | . . . . . . . . . 50 . . . . . . . . . . . 84 . . . . . . . 68 . . . Total Robot Build Rating 38 | . . . . . . . . . 10 . . . . . . . . . . . 12 . . . . . . . 16 . . . Part Schematics Acquired 22 | . . . . 1 . . . . 3 . . . . 5 . . . . 4 . 1 . 2 . . . . . 3 . 3 . Parts Built 15 | . . . . . . . . . . . . . . 5 . 1 . . . . 4 . 1 . . . . 4 . . . . Authchips 10 | . . . . . . . . . . . . . . 4 . 1 . . . . 2 . 1 . . . . 2 . . . . Time 508 | . . . . . . . . . . . . . . 219 . 76 . . . . 68 . 53 . . . . 92 . . . . Total Part Build Rating 112 | . . . . . . . . . . . . . . 29 . 5 . . . . 36 . 6 . . . . 36 . . . . Parts Repaired 1 | . . . . . . . . . . . . . . . . 1 . . . . . . . . . . . . . . . . Time 103 | . . . . . . . . . . . . . . . . 103 . . . . . . . . . . . . . . . . Parts Recycled . | . . . . . . . . . . . . . . . . . . . . . . . . . . . . . . . . . Recycled Matter . | . . . . . . . . . . . . . . . . . . . . . . . . . . . . . . . . . Retrieved Matter . | . . . . . . . . . . . . . . . . . . . . . . . . . . . . . . . . . Retrieved Components . | . . . . . . . . . . . . . . . . . . . . . . . . . . . . . . . . . Parts Scanalyzed 7 | . . . . . . . . . 2 . . . . 2 . 1 . . . . . . 2 . . . . . . . . . Part Schematics Acquired 5 | . . . . . . . . . 2 . . . . 1 . . . . . . . . 2 . . . . . . . . . Parts Damaged 1 | . . . . . . . . . . . . . . . . 1 . . . . . . . . . . . . . . . . Bothacking | -11 -10 -10 -9 -9 -9 -9 -6 -6 -6 -6 -6 -6 -5 -5 -5 -5 -5 -5 -5 -4 -4 -4 -4 -4 -4 -4 -4 -3 -3 -2 -2 -2 ------------ Run | Yrd Mat Min Mat Sto Rec Scr Fac Was Fac Low Low Zio Pro Fac Was Fac Upp Upp Zhi Pro Fac Was Fac Ext Cet Arc Hub Res Tes Res Qua Frg Used RIF Installer . | . . . . . . . . . . . . . . . . . . . . . . . . . . . . . . . . . Robots Hacked . | . . . . . . . . . . . . . . . . . . . . . . . . . . . . . . . . . Non-combat . | . . . . . . . . . . . . . . . . . . . . . . . . . . . . . . . . . Combat . | . . . . . . . . . . . . . . . . . . . . . . . . . . . . . . . . . Robot Hacks Applied . | . . . . . . . . . . . . . . . . . . . . . . . . . . . . . . . . . Relay Couplers Released 2 | . . . . . . . . . 2 . . . . . . . . . . . . . . . . . . . . . . . Machine Destruction 2 | . . . . . . . . . 2 . . . . . . . . . . . . . . . . . . . . . . . Fabnet Peak Effective % . | . . . . . . . . . . . . . . . . . . . . . . . . . . . . . . . . . Robots Rewired 16 | . . . . . . . . . . . . . . . . . . . . . . . . 16 . . . . . . . . Allies Hacked . | . . . . . . . . . . . . . . . . . . . . . . . . . . . . . . . . . Hacks Repelled . | . . . . . . . . . . . . . . . . . . . . . . . . . . . . . . . . . Allies | -11 -10 -10 -9 -9 -9 -9 -6 -6 -6 -6 -6 -6 -5 -5 -5 -5 -5 -5 -5 -4 -4 -4 -4 -4 -4 -4 -4 -3 -3 -2 -2 -2 -------- Run | Yrd Mat Min Mat Sto Rec Scr Fac Was Fac Low Low Zio Pro Fac Was Fac Upp Upp Zhi Pro Fac Was Fac Ext Cet Arc Hub Res Tes Res Qua Frg Total Allies 113 | . . 2 . 2 . . . 20 2 . . 3 . . 18 1 . . . . 8 19 5 25 5 . 1 . 2 . . . Largest Group 22 | . . 2 1 2 . . . 19 10 . . 3 3 . 18 1 . . . . 2 14 5 17 22 20 17 . 2 . . . Highest-Rated Group 1290 | . . 47 31 62 . . . 702 419 . . 70 70 . 638 10 . . . . 108 562 235 810 1290 1208 959 . 128 . . . Highest-Rated Ally 159 | . . 31 31 31 . . . 50 46 . . 28 28 . 50 10 . . . . 54 50 47 159 159 159 96 . 64 . . . Total Orders 16 | . . . . . 2 . . . . 1 . . 9 . . . . . . . 1 . . . . . . . . . 1 2 STAY 1 | . . . . . . . . . . . . . . . . . . . . . 1 . . . . . . . . . . . EXPLORE 14 | . . . . . 1 . . . . 1 . . 9 . . . . . . . . . . . . . . . . . 1 2 RETURN 1 | . . . . . 1 . . . . . . . . . . . . . . . . . . . . . . . . . . . Ally Attacks 706 | . . . 23 12 . . . 100 62 1 . . 22 . 57 . . . . . 39 67 58 119 52 39 51 . 4 . . . Total Damage 27421 | . . . 293 167 . . . 4004 2689 . . . 90 . 4734 . . . . . 1826 4655 1384 3250 1545 1086 1634 . 64 . . . Kills 107 | . . . 4 2 . . . 11 19 . . . 2 . 10 . . . . . 7 10 9 11 8 5 9 . . . . . Allies Corrupted 2 | . . . . . . . . . . . . . . . . . . . . . . . . . . . . . 2 . . . Allies Melted 2 | . . . . . . . . . 1 . . . . . . . . . . . . . . . . . . . . . . 1 Intel | -11 -10 -10 -9 -9 -9 -9 -6 -6 -6 -6 -6 -6 -5 -5 -5 -5 -5 -5 -5 -4 -4 -4 -4 -4 -4 -4 -4 -3 -3 -2 -2 -2 ------- Run | Yrd Mat Min Mat Sto Rec Scr Fac Was Fac Low Low Zio Pro Fac Was Fac Upp Upp Zhi Pro Fac Was Fac Ext Cet Arc Hub Res Tes Res Qua Frg Active Infowar (turns) 18172 | 58 1001 779 916 543 . 257 564 254 1095 455 339 358 440 1083 60 892 549 586 64 248 846 91 850 1007 355 376 314 985 576 139 332 1760 Optics 2670 | . . . . . . . . . . . . . . . . . . . . . . . . . . . . 982 576 139 82 891 Sensors 12892 | . . . . . . . 298 254 1095 453 339 358 438 1082 60 892 549 586 64 248 846 91 850 1007 355 376 314 896 567 139 332 403 A.S.S. 581 | . . . . . . . . . . . . . . . . . . . . . . . . . . . . . . . . 581 IFF 147 | . . . . . . . 147 . . . . . . . . . . . . . . . . . . . . . . . . . Terrain 2147 | . . . . . . . . . . . . . . . . . . . . . . . . . . . . 663 568 139 330 447 Structural 7427 | . . . . . . . 11 . 788 422 321 356 381 579 . 686 . 260 62 248 841 91 646 1007 355 150 223 . . . . . Seismic 3822 | 58 1001 779 916 543 . 257 268 . . . . . . . . . . . . . . . . . . . . . . . . . Robot Analysis Total 9 | . 2 . . . . . . . 3 . . . . . . . . . 4 . . . . . . . . . . . . . Derelict Logs Recovered 13 | . . 3 . . . . . . . 2 2 1 2 . . . 1 1 . 1 . . . . . . . . . . . . Drone Launches 27 | . . . . 4 1 . . . . 1 . . 14 . . . . . . . . . . . . . 3 . . . 1 3 Drone Recoveries 4 | . . . . 1 1 . . . . . . . . . . . . . . . . . . . . . . . . . 1 1 Exploration | -11 -10 -10 -9 -9 -9 -9 -6 -6 -6 -6 -6 -6 -5 -5 -5 -5 -5 -5 -5 -4 -4 -4 -4 -4 -4 -4 -4 -3 -3 -2 -2 -2 ------------- Run | Yrd Mat Min Mat Sto Rec Scr Fac Was Fac Low Low Zio Pro Fac Was Fac Upp Upp Zhi Pro Fac Was Fac Ext Cet Arc Hub Res Tes Res Qua Frg Turns Passed 21763 | 132 1001 779 916 1004 353 2415 564 254 1095 465 339 358 511 1085 60 892 559 586 64 248 846 91 850 1007 355 376 323 986 576 139 332 2202 Spaces Moved 26893 | 41 508 482 433 462 179 1579 930 277 1929 731 658 747 817 2038 168 1550 872 856 137 634 1604 215 1611 1021 226 125 553 678 868 310 661 2993 Core 160 | 9 . . . . . 151 . . . . . . . . . . . . . . . . . . . . . . . . . . Treads 3342 | 32 326 482 433 462 179 1428 . . . . . . . . . . . . . . . . . . . . . . . . . . Legs 65 | . . . . . . . . . . . . . . . . . . . . . . . . . . . . . . . . 65 Wheels 469 | . 182 . . . . . . . . . . . . . . . . . . . . . . . . . . 287 . . . . Hover 22430 | . . . . . . . 930 277 1929 731 658 747 817 2038 168 1550 872 856 137 634 1604 215 1611 1021 226 125 553 391 868 310 661 2501 Flight 427 | . . . . . . . . . . . . . . . . . . . . . . . . . . . . . . . . 427 Fastest Speed 15 | 50 95 160 160 160 160 50 40 40 40 40 40 40 40 30 30 16 15 17 28 17 16 26 17 16 27 31 17 34 17 17 17 17 Average Speed 51 | 135 136 160 160 160 160 148 40 40 40 40 40 40 41 34 30 27 27 27 28 27 25 26 25 25 30 31 32 96 37 31 29 39 Slowest Speed 360 | 160 160 160 160 160 160 160 98 44 100 40 40 40 44 44 30 33 28 28 28 28 84 26 103 27 33 31 157 360 135 32 32 220 Overloaded Moves 924 | . . . . . . . . . . . . . . . . 251 23 12 . 7 38 . 32 5 . . 137 . 61 14 151 193 Propulsion Burnouts 1 | . . . . . . . . . . . . . . . . . . . . . . . . . . . 1 . . . . . Robots Hopped 3 | . . . . . . . . . . . . . . . . . . . . . . . . . . . . . . . . 3 Potential Cave-ins 8 | . . . . . . . . . . . . . 1 . . 2 . . . . . . 2 . . . 1 . . . . 2 Cave-ins Triggered . | . . . . . . . . . . . . . . . . . . . . . . . . . . . . . . . . . Teleports 3 | . . . . . . . . . . . . . . . . . . . . . . . . . . . 1 . . . . 2 Exploration Rate (%) 67 | 5 74 99 40 69 73 94 33 95 61 87 93 84 86 53 89 49 83 85 60 82 47 86 52 86 68 79 57 25 94 10 74 59 Regions Visited 32 Branch Regions 19 Pre-discovered Areas 12 | . 1 1 1 . 2 3 1 . . . . . . . . . . . 3 . . . . . . . . . . . . . Known Exits Taken 20 | . . . 1 . . . . . 1 1 1 1 1 . . 1 1 1 1 1 . . 1 1 1 1 1 1 1 1 1 . Unknown Exits Taken 6 | 1 1 1 . 1 1 1 . . . . . . . . . . . . . . . . . . . . . . . . . . Scrap Searched 36 | . . 1 . . . 9 . . . 3 3 4 4 . . . 3 4 . 5 . . . . . . . . . . . . Spaces Dug 409 | . . . . . . . 21 . 31 34 2 . 13 48 2 53 5 5 . 2 33 6 41 . . . 15 11 45 3 13 26 Terrain Destroyed 1964 | . . . 17 38 . . 21 . 31 37 2 . 29 342 2 292 40 37 . 2 61 6 43 50 . . 369 140 97 3 13 292 Melee 179 | . . . . . . . 16 . 29 3 2 . 3 10 1 27 3 . . 2 25 . 32 . . . 7 . . 3 10 6 Projectile 229 | . . . . . . . 5 . 2 . . . 1 13 1 29 5 7 . . 9 6 11 3 . . 8 16 11 . 3 99 AOE 1556 | . . . 17 38 . . . . . 34 . . 25 319 . 236 32 30 . . 27 . . 47 . . 354 124 86 . . 187 Terrain Rammed . | . . . . . . . . . . . . . . . . . . . . . . . . . . . . . . . . . Walls Destroyed . | . . . . . . . . . . . . . . . . . . . . . . . . . . . . . . . . . Machines Disabled . | . . . . . . . . . . . . . . . . . . . . . . . . . . . . . . . . . Actions | -11 -10 -10 -9 -9 -9 -9 -6 -6 -6 -6 -6 -6 -5 -5 -5 -5 -5 -5 -5 -4 -4 -4 -4 -4 -4 -4 -4 -3 -3 -2 -2 -2 --------- Run | Yrd Mat Min Mat Sto Rec Scr Fac Was Fac Low Low Zio Pro Fac Was Fac Upp Upp Zhi Pro Fac Was Fac Ext Cet Arc Hub Res Tes Res Qua Frg Total 33116 | 74 681 489 557 616 246 1650 1072 395 2161 886 729 805 967 2346 173 1896 1159 1193 151 701 1942 241 1959 1694 477 448 659 957 1056 335 762 3639 Wait 3836 | 2 67 4 16 32 61 10 41 84 115 130 69 56 97 181 . 181 252 314 1 64 210 18 254 523 216 309 60 171 108 4 48 138 Move 26859 | 40 507 481 432 461 178 1578 930 276 1928 730 657 746 816 2038 167 1549 871 855 136 633 1604 214 1610 1020 225 124 552 677 867 309 660 2988 Hop 2 | . . . . . . . . . . . . . . . . . . . . . . . . . . . . . . . . 2 Pick Up 230 | 3 11 2 15 15 3 30 6 3 14 1 . 1 7 12 1 13 1 3 2 1 16 1 10 1 1 1 . 7 9 3 10 27 Fast Attach 195 | 7 3 . 4 10 . 9 8 . 2 3 . . 2 16 1 6 7 3 2 . 11 . 5 1 1 3 1 23 3 2 6 56 Attach 128 | . 1 . 2 9 2 2 10 . 3 1 . . 5 5 . 11 1 3 . . 12 . 3 2 2 1 6 19 3 2 1 22 Detach 55 | . . . 1 1 1 1 3 . 1 . . . 1 1 . 4 2 1 . . 1 . . 1 1 1 4 9 3 2 . 16 Swap 159 | . 5 1 6 10 1 3 12 5 14 6 1 1 15 13 . 12 1 1 1 . 6 . 10 1 2 . 2 6 11 . . 13 Drop 296 | . 10 . 23 19 . 17 15 3 17 4 . 1 9 25 1 15 6 4 3 1 20 . 10 2 . 1 2 6 10 4 13 55 Fire 773 | 22 76 . 58 59 . . 5 24 2 4 . . 4 18 2 63 7 8 . . 22 8 13 34 13 . 23 39 41 . 6 222 Melee 370 | . . . . . . . 29 . 59 6 2 . 10 37 1 40 11 1 6 2 40 . 44 7 8 8 9 . . 9 18 23 Ram 1 | . . . . . . . . . . . . . . . . . . . . . . . . . . . . . 1 . . . Kick . | . . . . . . . . . . . . . . . . . . . . . . . . . . . . . . . . . Crush 2 | . 1 1 . . . . . . . . . . . . . . . . . . . . . . . . . . . . . . Escape Stasis 48 | . . . . . . . 13 . 5 . . . . . . . . . . . . . . 13 . . . . . . . 17 Rewire 90 | . . . . . . . . . . 1 . . . . . . . . . . . . . 89 . . . . . . . . Trap 3 | . . . . . . . . . 1 . . . . . . 2 . . . . . . . . . . . . . . . . Miscellaneous 69 | . . . . . . . . . . . . . 1 . . . . . . . . . . . 8 . . . . . . 60 Route ------- -11/Scrapyard -10/Materials (discovered 4 exits: *Mat x2 / *Min / [*Sub]) -10/Mines (discovered 4 exits: *Mat x2 / [*Exi] / [*Sub]) -9/Materials (discovered 4 exits: [*Mat] / Min / *Sto x2) -9/Storage -9/Recycling (discovered 2 exits: [*Fac] / *Scr) -9/Scraptown (discovered 2 exits: *Fac x2) -6/Factory (discovered 5 exits: *Fac x4 / Low) -6/Waste -6/Factory (discovered 5 exits: *Fac x3 / *Low x2) -6/Lower Caves -6/Lower Caves (discovered 2 exits: *Fac / *Zio) -6/Zion -5/Proximity Caves -5/Factory (discovered 4 exits: *Fac x2 / Upp x2) -5/Waste -5/Factory (discovered 3 exits: *Fac / *Upp x2) -5/Upper Caves -5/Upper Caves (discovered 2 exits: *Fac / *Zhi) -5/Zhirov -4/Proximity Caves -4/Factory (discovered 5 exits: *Res / Upp x2 / Ext x2) -4/Waste -4/Factory (discovered 5 exits: *Res / *Upp x2 / *Ext x2) -4/Extension (discovered 3 exits: *Res x2 / *Cet) -4/Cetus (discovered 2 exits: *Res / *Arc) -4/Archives (discovered 3 exits: *Res / *Hub x2) -4/Hub_04(d) (discovered 2 exits: *Res x2) -3/Research (discovered 5 exits: Res x2 / Arm / *Tes x2) -3/Testing -2/Research (discovered 2 exits: *Qua x2) -2/Quarantine (discovered 3 exits: *Acc / *Sec / *Frg) -2/Protoforge 0bPrime History --------- Turn | Location | Event 3 | -11/Scrapyard | Discovered new exit (range 16) 133 | -11/Scrapyard | Entered Materials 305 | -10/Materials | Build established: Mutant 319 | -10/Materials | Discovered new exit (range 8) 475 | -10/Materials | Discovered new exit (range 10) 714 | -10/Materials | Discovered new exit (range 15) 1031 | -10/Materials | Discovered new exit (range 8) 1134 | -10/Materials | Entered Mines 1139 | -10/Mines | Found the Drone Emporium 1144 | -10/Mines | Found Prototype Device 1267 | -10/Mines | Learned 2 Materials zone layouts 1269 | -10/Mines | Learned Materials emergency access door positions 1421 | -10/Mines | Discovered new exit (range 6) 1466 | -10/Mines | Deemed a non-threat by the Exiles lab entrance 1466 | -10/Mines | Discovered new exit (range 5) 1631 | -10/Mines | Received a Rocket Launcher from a helpful Derelict 1646 | -10/Mines | Learned location of Recycling (-9) 1761 | -10/Mines | Discovered new exit (range 10) 1904 | -10/Mines | Discovered new exit (range 5) 1913 | -10/Mines | Entered Materials 1913 | -9/Materials | Accompanied by 1 ally 1913 | -9/Materials | Evolved 2 slots: Propulsion x1, Utility x1 1918 | -9/Materials | Led the pair of lost Derelicts to an unsafe place 2370 | -9/Materials | Discovered new exit (range 16) 2424 | -9/Materials | Identified exit to Mines 2424 | -9/Materials | Identified exit to Storage 2442 | -9/Materials | Destroyed 7 combat bots 2491 | -9/Materials | Discovered new exit (range 15) 2574 | -9/Materials | Build established: Scavenger-Mutant 2829 | -9/Materials | Entered Storage 3141 | -9/Storage | Identified Bomb Drone Bay 3351 | -9/Storage | Garrison activated, responded to threat 3369 | -9/Storage | Build established: Mutant 3409 | -9/Storage | Lost 4 parts (1p1n1u1w) 3522 | -9/Storage | Garrison activated, responded to threat 3679 | -9/Storage | Build established: Scavenger-Mutant 3729 | -9/Storage | Met a pair of Derelict thieves 3775 | -9/Storage | Used back door to open Recycling access 3775 | -9/Storage | Discovered new exit (range 5) 3803 | -9/Storage | Core integrity fell below 50% 3825 | -9/Storage | Core integrity fell below 20% 3833 | -9/Storage | Entered Recycling 3846 | -9/Recycling | Lost 5 allies 3848 | -9/Recycling | Lost 8 parts (1p2n3u2w) 3861 | -9/Recycling | Discovered new exit (range 75) 3942 | -9/Recycling | Scanned before Scraplab entrance 4101 | -9/Recycling | Build established: Mutant 4172 | -9/Recycling | Entered Scraplab 4185 | -9/Recycling | Discovered new exit (range 2) 4186 | -9/Recycling | Entered Scraptown 4186 | -9/Scraptown | System corruption cleaned by C-Scrubber 4489 | -9/Scraptown | Heard Great Nut preacher, LISTEN AND RECITE! 4565 | -9/Scraptown | Discovered new exit (range 11) 4694 | -9/Scraptown | Visited Awakened 4722 | -9/Scraptown | Visited Assassins FH 4966 | -9/Scraptown | Visited TADAMA 5123 | -9/Scraptown | Visited Bundlers 5288 | -9/Scraptown | Visited Fellowship of the Rings 5304 | -9/Scraptown | Visited Cave Peace 5332 | -9/Scraptown | Visited The Evicted 5361 | -9/Scraptown | Visited UFD Registry 5361 | -9/Scraptown | Registered with UFD as "Gearmech" 5412 | -9/Scraptown | Visited Abandonware Association 5433 | -9/Scraptown | Learned abandonware demo "KABOOM.EXE" 5468 | -9/Scraptown | Visited Curators Association 5521 | -9/Scraptown | Visited Science Guys 5775 | -9/Scraptown | Visited Derelict Rescue Squad 5786 | -9/Scraptown | Found DRS Beacon 5814 | -9/Scraptown | Visited Scrapoid Research Area 5857 | -9/Scraptown | Visited Cartography Club 5974 | -9/Scraptown | Discovered new exit (range 5) 6033 | -9/Scraptown | Visited A0-MCA Data Center 6044 | -9/Scraptown | Given an A- rating by A0-MCA 6049 | -9/Scraptown | Found Unknown Processor 6085 | -9/Scraptown | Visited Junk Repository 6170 | -9/Scraptown | Visited Modified Component R&D 6301 | -9/Scraptown | Found Surveybot 17 Chip 6326 | -9/Scraptown | Learned location of Lower Caves (-6) 6326 | -9/Scraptown | Learned location of Testing (-3) 6326 | -9/Scraptown | Learned 12 Materials zone layouts 6326 | -9/Scraptown | Learned 12 Factory zone layouts 6326 | -9/Scraptown | Learned 16 Factory zone layouts 6326 | -9/Scraptown | Learned 4 Access zone layouts 6326 | -9/Scraptown | Learned 12 Proximity Caves zone layouts 6326 | -9/Scraptown | Learned location of 2 exits from Research 6326 | -9/Scraptown | Learned location of 3 exits from Lower Caves 6347 | -9/Scraptown | Found Deep Structural Scanner 6364 | -9/Scraptown | Identified A0-MCA's Component Scanner 6511 | -9/Scraptown | Met Optimus 6511 | -9/Scraptown | Accepted into 0bPrime 6601 | -9/Scraptown | Entered Factory 6601 | -6/Factory | Evolved 6 slots: Propulsion x3, Utility x3 6602 | -6/Factory | Identified exit to Factory 6603 | -6/Factory | Identified exit to Lower Caves 6739 | -6/Factory | Loaded intel: 8 recycling unit locations 6858 | -6/Factory | Learned location of Protoforge (-2) 7165 | -6/Factory | Manually triggered Chute Trap 7165 | -6/Factory | Sucked down chute 7165 | -6/Factory | Entered Waste 7166 | -6/Waste | Met a frightened Derelict 7169 | -6/Waste | Spotted C-40 Crusher 7172 | -6/Waste | Spotted C-40 Crusher 7198 | -6/Waste | Spotted C-40 Crusher 7210 | -6/Waste | Warlord forces began an assault 7218 | -6/Waste | Spotted C-40 Crusher 7222 | -6/Waste | Allies destroyed C-40 Crusher 7224 | -6/Waste | Allies destroyed C-40 Crusher 7225 | -6/Waste | Spotted C-40 Crusher 7226 | -6/Waste | Destroyed C-40 Crusher 7227 | -6/Waste | Spotted C-40 Crusher 7234 | -6/Waste | Allies destroyed C-40 Crusher 7239 | -6/Waste | Allies destroyed C-40 Crusher 7245 | -6/Waste | Allies destroyed C-40 Crusher 7276 | -6/Waste | Lost 10 allies 7362 | -6/Waste | Discovered new exit (range 12) 7367 | -6/Waste | Identified exit to Factory 7419 | -6/Waste | Entered Factory 7419 | -6/Factory | Accompanied by 10 allies 7533 | -6/Factory | Discovered exit to Lower Caves (range 14) 7784 | -6/Factory | Loaded intel: 8 recycling unit locations 7802 | -6/Factory | Build established: Scout 7853 | -6/Factory | Discovered exit to Factory (range 15) 7905 | -6/Factory | Discovered exit to Factory (range 15) 7915 | -6/Factory | Lost 4 allies 8065 | -6/Factory | Fabricated H-66 Slayer (x2) 8471 | -6/Factory | Discovered exit to Factory (range 15) 8514 | -6/Factory | Entered Lower Caves 8515 | -6/Lower Caves | Identified exit to Lower Caves 8714 | -6/Lower Caves | Learned 8 Factory zone layouts 8761 | -6/Lower Caves | Learned 4 Factory zone layouts 8929 | -6/Lower Caves | Spotted B-75 Beast 8979 | -6/Lower Caves | Entered another Lower Caves area 8980 | -6/Lower Caves | Identified exit to Zion 9148 | -6/Lower Caves | Encountered a Warlord checkpoint 9318 | -6/Lower Caves | Entered Zion 9354 | -6/Zion | Discovered new exit (range 15) 9359 | -6/Zion | Identified exit to Proximity Caves 9399 | -6/Zion | Received a visual enhancement algorithm 9452 | -6/Zion | Gained Derelict followers 9474 | -6/Zion | Turned away by Imprinter 9517 | -6/Zion | Given the Hacking Drone Bay 9574 | -6/Zion | Learned Factory emergency access door positions 9676 | -6/Zion | Entered Proximity Caves 9676 | -5/Proximity Caves | Accompanied by 3 allies 9677 | -5/Proximity Caves | Activated DRS Beacon 9890 | -5/Proximity Caves | Found Imp. Powered Armor 9895 | -5/Proximity Caves | Lost 3 allies 9923 | -5/Proximity Caves | Learned 4 Factory zone layouts 9958 | -5/Proximity Caves | Learned Research garrison access intel 9958 | -5/Proximity Caves | Learned Research terminal intel 9958 | -5/Proximity Caves | Learned Research stockpile data 9958 | -5/Proximity Caves | Learned 6 Upper Caves zone layouts 9958 | -5/Proximity Caves | Learned location of 2 exits from Upper Caves 9968 | -5/Proximity Caves | Learned Factory trap positions 9992 | -5/Proximity Caves | Attracted the attention of an 0b10 base 10053 | -5/Proximity Caves | Lost 14 allies 10187 | -5/Proximity Caves | Entered Factory 10187 | -5/Factory | Evolved 2 slots: Power x1, Propulsion x1 10188 | -5/Factory | Identified exit to Upper Caves 10189 | -5/Factory | Identified exit to Factory 10190 | -5/Factory | Loaded intel: 68 trap records 10204 | -5/Factory | Loaded intel: 8 recycling unit locations 10374 | -5/Factory | Fabricated Cld. Aerolev Unit (x1) 10453 | -5/Factory | Fabricated Cld. Aerolev Unit (x1) 10764 | -5/Factory | Discovered exit to Factory (range 16) 11037 | -5/Factory | Fabricated Lrn. Sensor Array (x2) 11079 | -5/Factory | Fabricated Cld. Aerolev Unit? 11087 | -5/Factory | First assault squad dispatched 11089 | -5/Factory | Imp. Hacking Suite fried by hacking feedback 11272 | -5/Factory | Manually triggered Chute Trap 11272 | -5/Factory | Sucked down chute 11272 | -5/Factory | Entered Waste 11278 | -5/Waste | Spotted C-40 Crusher 11278 | -5/Waste | Spotted C-40 Crusher 11280 | -5/Waste | Spotted C-40 Crusher 11281 | -5/Waste | Spotted C-40 Crusher 11287 | -5/Waste | EMP discharged 11293 | -5/Waste | Met Warlord forces unprepared to attack 11306 | -5/Waste | Spotted C-40 Crusher 11321 | -5/Waste | Spotted C-40 Crusher 11329 | -5/Waste | Discovered new exit (range 10) 11332 | -5/Waste | Identified exit to Factory 11332 | -5/Waste | Entered Factory 11347 | -5/Factory | Lost 8 allies 11363 | -5/Factory | Loaded intel: 8 recycling unit locations 11605 | -5/Factory | Garrison activated, responded to threat 11636 | -5/Factory | Build established: Machinist-Scout 11839 | -5/Factory | Repaired Broken Lgt. Quantum Reactor 11932 | -5/Factory | First assault squad dispatched 11963 | -5/Factory | Cargo convoy interrupted 11969 | -5/Factory | Fabricated Cld. Aerolev Unit (x1) 12096 | -5/Factory | Discovered exit to Factory (range 13) 12159 | -5/Factory | Destroyed 9 combat bots 12224 | -5/Factory | Entered Upper Caves 12225 | -5/Upper Caves | Identified exit to Upper Caves 12389 | -5/Upper Caves | Build established: Machinist-Sprinter 12715 | -5/Upper Caves | Learned Factory interactive machine intel 12750 | -5/Upper Caves | Found Alien Artifact 12750 | -5/Upper Caves | Identified Core Expander 12750 | -5/Upper Caves | Installed Core Expander, added new Weapon slot 12783 | -5/Upper Caves | Entered another Upper Caves area 12784 | -5/Upper Caves | Identified exit to Zhirov 12788 | -5/Upper Caves | Discovered exit to Factory (range 13) 12854 | -5/Upper Caves | Spotted B-75 Beast 13369 | -5/Upper Caves | Entered Zhirov 13369 | -5/Zhirov | Discovered new exit (range 3) 13370 | -5/Zhirov | Identified exit to Proximity Caves 13375 | -5/Zhirov | Met Zhirov 13380 | -5/Zhirov | Learned location of Quarantine (-2) 13380 | -5/Zhirov | Learned location of Command (-1) 13382 | -5/Zhirov | Zhirov requested help retrieving the SGEMP Prototype 13387 | -5/Zhirov | Found Alien Artifact 13387 | -5/Zhirov | Identified Integrated Dissipator 13387 | -5/Zhirov | Installed Integrated Dissipator, increased core heat dissipation (+20) 13416 | -5/Zhirov | Build established: Machinist-Scout 13422 | -5/Zhirov | Found Alien Artifact 13433 | -5/Zhirov | Entered Proximity Caves 13495 | -4/Proximity Caves | Spotted B-86 Titan 13652 | -4/Proximity Caves | Discovered exit to Factory (range 13) 13658 | -4/Proximity Caves | Learned Research emergency access door positions 13681 | -4/Proximity Caves | Entered Factory 13681 | -4/Factory | Evolved 2 slots: Propulsion x1, Utility x1 13682 | -4/Factory | Identified exit to Extension 13683 | -4/Factory | Loaded intel: 56 interactive machine locations 13713 | -4/Factory | Loaded intel: 8 recycling unit locations 13730 | -4/Factory | Identified exit to Upper Caves 13941 | -4/Factory | Fabricated P-70 Sage (x2) 13988 | -4/Factory | Adv. Hacking Suite fried by hacking feedback 14141 | -4/Factory | Scrapoids reinforcements arrived? 14213 | -4/Factory | Discovered new exit (range 18) 14278 | -4/Factory | Fabricated Cmb. Linear Gravjet (x2) 14318 | -4/Factory | Fabricated Cmb. Linear Gravjet (x2) 14527 | -4/Factory | Sucked down chute 14527 | -4/Factory | Entered Waste 14532 | -4/Waste | Spotted C-40 Crusher 14534 | -4/Waste | Spotted C-40 Crusher 14535 | -4/Waste | Spotted C-40 Crusher 14541 | -4/Waste | Met Warlord forces unprepared to attack 14542 | -4/Waste | 1 allies followed down the chute 14542 | -4/Waste | EMP discharged 14542 | -4/Waste | System corruption reached 10% 14551 | -4/Waste | Spotted C-40 Crusher 14551 | -4/Waste | Spotted C-40 Crusher 14551 | -4/Waste | Spotted C-40 Crusher 14574 | -4/Waste | Allies destroyed C-40 Crusher 14581 | -4/Waste | Lost 7 allies 14612 | -4/Waste | Discovered new exit (range 12) 14618 | -4/Waste | Identified exit to Factory 14618 | -4/Waste | Entered Factory 14636 | -4/Factory | Lost 4 allies 14672 | -4/Factory | Discovered exit to Upper Caves (range 13) 14719 | -4/Factory | Loaded intel: 8 recycling unit locations 14731 | -4/Factory | Scrapoids reinforcements arrived? 14868 | -4/Factory | Search patrols dispatched 14892 | -4/Factory | Discovered exit to Upper Caves (range 13) 14960 | -4/Factory | Fabricated Adv. Hacking Suite (x1) 15089 | -4/Factory | Identified Transdimensional Reconstructor 15313 | -4/Factory | Discovered new exit (range 15) 15468 | -4/Factory | Entered Extension 15701 | -4/Extension | Rescued a captive Derelict 15727 | -4/Extension | Rescued a captive Derelict 15728 | -4/Extension | Rescued a captive Derelict 15982 | -4/Extension | Spotted B-86 Titan 16052 | -4/Extension | Discovered new exit (range 17) 16093 | -4/Extension | Spotted B-86 Titan 16210 | -4/Extension | Rescued a captive Derelict 16213 | -4/Extension | Rescued a captive Derelict 16265 | -4/Extension | Rescued A7 16279 | -4/Extension | Rescued a captive Derelict 16279 | -4/Extension | Rescued a captive Derelict 16335 | -4/Extension | Rescued a captive Derelict 16341 | -4/Extension | Discovered new exit (range 10) 16344 | -4/Extension | Discovered new exit (range 6) 16346 | -4/Extension | Identified exit to Cetus 16466 | -4/Extension | Identified exit to Research 16475 | -4/Extension | Entered Cetus 16475 | -4/Cetus | Accompanied by 17 allies (A7) 16480 | -4/Cetus | Acquired a Cetus Manufacturing Module code from A7 16490 | -4/Cetus | Spotted Cetus Guard 16490 | -4/Cetus | Spotted Cetus Guard 16490 | -4/Cetus | Spotted Cetus Guard 16490 | -4/Cetus | Destroyed Cetus Guard 16494 | -4/Cetus | Destroyed Cetus Guard 16498 | -4/Cetus | Allies destroyed Cetus Guard 16554 | -4/Cetus | Started Cetus Manufacturing Module 16579 | -4/Cetus | Manufactured an Enhanced Grunt 16602 | -4/Cetus | Escorted A7 to Cetus Mainframe 16604 | -4/Cetus | Manufactured an Enhanced Grunt 16629 | -4/Cetus | Manufactured an Enhanced Grunt 16654 | -4/Cetus | Manufactured an Enhanced Grunt 16679 | -4/Cetus | Manufactured an Enhanced Grunt 16704 | -4/Cetus | Found a strange terminal 16709 | -4/Cetus | Discovered new exit (range 15) 16714 | -4/Cetus | Spotted Cetus Guard 16714 | -4/Cetus | Spotted Cetus Guard 16744 | -4/Cetus | Spotted Cetus Guard 16744 | -4/Cetus | Spotted Cetus Guard 16745 | -4/Cetus | Allies destroyed Cetus Guard 16745 | -4/Cetus | Allies destroyed Cetus Guard 16750 | -4/Cetus | Allies destroyed Cetus Guard 16754 | -4/Cetus | Allies destroyed Cetus Guard 16767 | -4/Cetus | Discovered exit to Research (range 18) 16771 | -4/Cetus | Met Revision 17 16781 | -4/Cetus | Identified exit to Archives 16830 | -4/Cetus | Entered Archives 16830 | -4/Archives | Accompanied by 20 allies (A7) 16835 | -4/Archives | Received a hacking code to weaken MAIN.C 16887 | -4/Archives | Discovered exit to Research (range 18) 16888 | -4/Archives | Build established: Commander-Scout 16898 | -4/Archives | Discovered new exit (range 16) 16905 | -4/Archives | Discovered new exit (range 17) 17151 | -4/Archives | Identified exit to Hub_04(d) 17206 | -4/Archives | Entered Hub_04(d) 17206 | -4/Hub_04(d) | Accompanied by 17 allies 17229 | -4/Hub_04(d) | Discovered exit to Research (range 15) 17258 | -4/Hub_04(d) | Garrison activated, responded to threat 17320 | -4/Hub_04(d) | Lost 13 allies 17337 | -4/Hub_04(d) | Discovered exit to Research (range 12) 17356 | -4/Hub_04(d) | Warped through subspace 17356 | -4/Hub_04(d) | Spotted B-86 Titan 17413 | -4/Hub_04(d) | Lost 3 allies 17475 | -4/Hub_04(d) | Lost 4 parts (2n1u1w) 17494 | -4/Hub_04(d) | Network Hub disabled 17494 | -4/Hub_04(d) | Network Hub disabled 17529 | -4/Hub_04(d) | Entered Research 17529 | -3/Research | Evolved 2 slots: Utility x2 17530 | -3/Research | Identified exit to Research 17533 | -3/Research | Loaded intel: 20 terminal locations 17534 | -3/Research | Loaded intel: 4 garrison access locations 17557 | -3/Research | Lost 10 parts (2p4n3u1w) 17592 | -3/Research | Identified exit to Armory 17592 | -3/Research | Identified exit to Testing 17729 | -3/Research | Revision forces began assault on 0b10 17742 | -3/Research | Met up with Revision 17++ 17807 | -3/Research | Lost 3 allies 17881 | -3/Research | Build established: Hacker-Mutant 18197 | -3/Research | Loaded intel: 5 recycling unit locations 18229 | -3/Research | Research terminal network offline 18274 | -3/Research | Build established: Scavenger-Mutant 18370 | -3/Research | Fabricated Cmb. Linear Gravjet (x2) 18423 | -3/Research | Fabricated Cmb. Linear Gravjet (x2) 18491 | -3/Research | Spotted Striker 18501 | -3/Research | Spotted Striker 18515 | -3/Research | Entered Testing 18520 | -3/Testing | Found Potential Cannon 18571 | -3/Testing | Protovariant out of control (PL-EGYOO47TJF) 18571 | -3/Testing | Unleashed a protovariant (PL-EGYOO47TJF) 18647 | -3/Testing | Spotted Striker 18647 | -3/Testing | Spotted Striker 18799 | -3/Testing | Build established: Machinist-Scout 18998 | -3/Testing | Fabricated Y-72 Warden? 19091 | -3/Testing | Entered Research 19091 | -2/Research | Evolved 2 slots: Utility x2 19107 | -2/Research | Identified exit to Quarantine 19113 | -2/Research | Loaded intel: 5 recycling unit locations 19230 | -2/Research | Entered Quarantine 19340 | -2/Quarantine | Found Alien Artifact 19342 | -2/Quarantine | Found Transdimensional Reconstructor 19343 | -2/Quarantine | Found Transdimensional Reconstructor 19359 | -2/Quarantine | Found Alien Artifact 19362 | -2/Quarantine | Identified Dimensional Node Initializer 19362 | -2/Quarantine | Initialized slip node 19366 | -2/Quarantine | Found Dimensional Node Initializer 19440 | -2/Quarantine | Discovered new exit (range 12) 19453 | -2/Quarantine | Identified exit to Access 19464 | -2/Quarantine | Found Ragnarok Missile Launcher 19475 | -2/Quarantine | Found Alien Slashing Weapon 19475 | -2/Quarantine | Identified Sigix Broadsword 19485 | -2/Quarantine | Found Alien Artifact 19539 | -2/Quarantine | Spotted Fortress 19556 | -2/Quarantine | Discovered new exit (range 19) 19560 | -2/Quarantine | Discovered new exit (range 6) 19561 | -2/Quarantine | Identified exit to Section 7 19562 | -2/Quarantine | Identified exit to Protoforge 19562 | -2/Quarantine | Entered Protoforge 19592 | -2/Protoforge | Superfortress began startup sequence 19666 | -2/Protoforge | Discovered exit to Access (range 10) 19775 | -2/Protoforge | Spotted Hotshot 19775 | -2/Protoforge | Spotted Hotshot 19783 | -2/Protoforge | Spotted Hotshot 19783 | -2/Protoforge | Spotted Hotshot 19791 | -2/Protoforge | Spotted Hotshot 19791 | -2/Protoforge | Spotted Hotshot 19830 | -2/Protoforge | Spotted Overlord 19834 | -2/Protoforge | Spotted AP7-3 19834 | -2/Protoforge | Spotted AP7-3 19856 | -2/Protoforge | Spotted Decapitator 19856 | -2/Protoforge | Spotted Decapitator 19865 | -2/Protoforge | UFD initiated attack on Protoforge 19865 | -2/Protoforge | Loaded intel: 3 recycling unit locations 19886 | -2/Protoforge | Spotted EXE-6 19886 | -2/Protoforge | Spotted EXE-6 19894 | -2/Protoforge | Found Exp. Core Analyzer 19899 | -2/Protoforge | Found Exp. Kinecellerator 19901 | -2/Protoforge | Optimus greeted in Protoforge 19906 | -2/Protoforge | Found Cep. XC Strikerail 19907 | -2/Protoforge | Found Cep. XC Strikerail 19931 | -2/Protoforge | Initialized slip node 19940 | -2/Protoforge | Found UFD Drillbomb 19949 | -2/Protoforge | Lost 8 allies 19954 | -2/Protoforge | Identified Subatomic Replicator 19954 | -2/Protoforge | Used Subatomic Replicator to replicate Cep. XC Strikerail 19962 | -2/Protoforge | Spotted EXE-6 19962 | -2/Protoforge | Spotted EXE-6 19979 | -2/Protoforge | Found Exp. Core Analyzer 19982 | -2/Protoforge | Found Cep. XC Strikerail 20000 | -2/Protoforge | Destroyed Overlord 20010 | -2/Protoforge | Found Exp. Active Sensor Suite 20013 | -2/Protoforge | Found Exp. Remote Shield 20015 | -2/Protoforge | Found Exp. Weapon Cycler 20023 | -2/Protoforge | Destroyed Hotshot 20029 | -2/Protoforge | Lost 10 allies 20081 | -2/Protoforge | Installed UFD Drillbomb at designated target 20081 | -2/Protoforge | UFD reported confirmed Drillbomb installation 20088 | -2/Protoforge | UFD reported confirmed Drillbomb installation 20089 | -2/Protoforge | Spotted Striker 20101 | -2/Protoforge | Spotted Striker 20101 | -2/Protoforge | Spotted Striker 20103 | -2/Protoforge | Destroyed Striker 20105 | -2/Protoforge | Spotted Executioner 20106 | -2/Protoforge | Destroyed Striker 20108 | -2/Protoforge | Spotted Striker 20110 | -2/Protoforge | Destroyed Executioner 20143 | -2/Protoforge | Destroyed 16 combat bots 20151 | -2/Protoforge | Lost 11 allies 20155 | -2/Protoforge | Found UFD Drillbomb 20180 | -2/Protoforge | Spotted Striker 20181 | -2/Protoforge | Spotted Striker 20184 | -2/Protoforge | Destroyed Striker 20186 | -2/Protoforge | Build established: Scavenger-Scout 20189 | -2/Protoforge | Spotted Striker 20190 | -2/Protoforge | Spotted Striker 20193 | -2/Protoforge | P-80 Master assimilated allied 02F54-D 20197 | -2/Protoforge | Destroyed Striker 20199 | -2/Protoforge | Destroyed Striker 20230 | -2/Protoforge | Installed UFD Drillbomb at designated target 20230 | -2/Protoforge | UFD reported confirmed Drillbomb installation 20231 | -2/Protoforge | Destroyed 8 combat bots 20232 | -2/Protoforge | Lost 4 allies 20240 | -2/Protoforge | Found UFD Drillbomb 20259 | -2/Protoforge | Installed UFD Drillbomb at designated target 20259 | -2/Protoforge | UFD reported confirmed Drillbomb installation 20301 | -2/Protoforge | Found UFD Drillbomb 20329 | -2/Protoforge | Spotted Striker 20345 | -2/Protoforge | Destroyed Striker 20350 | -2/Protoforge | Spotted Executioner 20372 | -2/Protoforge | Spotted Striker 20372 | -2/Protoforge | Destroyed Striker 20382 | -2/Protoforge | Destroyed Executioner 20383 | -2/Protoforge | Spotted Striker 20395 | -2/Protoforge | Spotted Executioner 20395 | -2/Protoforge | Destroyed Executioner 20405 | -2/Protoforge | Destroyed Executioner 20426 | -2/Protoforge | Destroyed 17 combat bots 20435 | -2/Protoforge | Spotted Executioner 20441 | -2/Protoforge | Destroyed Executioner 20441 | -2/Protoforge | Spotted Striker 20451 | -2/Protoforge | Destroyed Striker 20478 | -2/Protoforge | Spotted Executioner 20511 | -2/Protoforge | Spotted Hotshot 20511 | -2/Protoforge | Spotted Hotshot 20512 | -2/Protoforge | Spotted Hotshot 20514 | -2/Protoforge | Destroyed Hotshot 20517 | -2/Protoforge | Destroyed Hotshot 20538 | -2/Protoforge | Destroyed 22 combat bots 20550 | -2/Protoforge | Spotted Executioner 20559 | -2/Protoforge | Spotted Executioner 20590 | -2/Protoforge | Lost 4 allies 20596 | -2/Protoforge | Installed UFD Drillbomb at designated target 20596 | -2/Protoforge | UFD reported confirmed Drillbomb installation 20658 | -2/Protoforge | UFD reported confirmed Drillbomb installation 20677 | -2/Protoforge | Warped through subspace to slip node 20681 | -2/Protoforge | Found UFD Drillbomb 20701 | -2/Protoforge | UFD reported confirmed Drillbomb installation 20723 | -2/Protoforge | Spotted Striker 20736 | -2/Protoforge | Destroyed Striker 20745 | -2/Protoforge | Spotted Executioner 20755 | -2/Protoforge | Lost 4 allies 20757 | -2/Protoforge | Spotted Striker 20759 | -2/Protoforge | Destroyed Striker 20761 | -2/Protoforge | Spotted Striker 20765 | -2/Protoforge | Destroyed Striker 20790 | -2/Protoforge | Destroyed 9 combat bots 20812 | -2/Protoforge | Spotted Striker 20816 | -2/Protoforge | Destroyed Striker 20837 | -2/Protoforge | Destroyed 8 combat bots 20840 | -2/Protoforge | Spotted Striker 20842 | -2/Protoforge | Spotted Striker 20843 | -2/Protoforge | Spotted Hotshot 20843 | -2/Protoforge | Destroyed Hotshot 20846 | -2/Protoforge | Destroyed Striker 20850 | -2/Protoforge | Spotted Executioner 20856 | -2/Protoforge | Spotted Executioner 20868 | -2/Protoforge | Destroyed Striker 20901 | -2/Protoforge | Spotted Striker 20918 | -2/Protoforge | Destroyed Striker 20945 | -2/Protoforge | Spotted Striker 20949 | -2/Protoforge | Spotted Striker 20957 | -2/Protoforge | Destroyed Striker 20964 | -2/Protoforge | Lost 5 parts (2n2u1w) 20995 | -2/Protoforge | Spotted Executioner 21015 | -2/Protoforge | Spotted Executioner 21015 | -2/Protoforge | Spotted Executioner 21015 | -2/Protoforge | Spotted Striker 21015 | -2/Protoforge | Spotted Striker 21017 | -2/Protoforge | Spotted B-90 Cyclops 21018 | -2/Protoforge | Installed UFD Drillbomb at designated target 21018 | -2/Protoforge | UFD reported confirmed Drillbomb installation 21019 | -2/Protoforge | Warped through subspace to slip node 21024 | -2/Protoforge | Lost 11 allies 21026 | -2/Protoforge | UFD reported confirmed Drillbomb installation 21038 | -2/Protoforge | Found Exp. Targeting Computer 21050 | -2/Protoforge | Lost 7 parts (1p3n2u1w) 21061 | -2/Protoforge | Found Cep. XC Strikerail 21091 | -2/Protoforge | Spotted Striker 21097 | -2/Protoforge | Spotted Executioner 21101 | -2/Protoforge | Spotted Immortal 21105 | -2/Protoforge | Spotted Immortal 21108 | -2/Protoforge | Spotted Immortal 21128 | -2/Protoforge | Destroyed Immortal 21143 | -2/Protoforge | Destroyed Immortal 21151 | -2/Protoforge | Core integrity fell below 50% 21179 | -2/Protoforge | Lost 5 allies 21191 | -2/Protoforge | Spotted Striker 21193 | -2/Protoforge | Found UFD Drillbomb 21194 | -2/Protoforge | Spotted Executioner 21223 | -2/Protoforge | Spotted Executioner 21232 | -2/Protoforge | Build established: Scavenger-Gunner 21260 | -2/Protoforge | Spotted Striker 21261 | -2/Protoforge | Spotted Striker 21262 | -2/Protoforge | Lost 4 parts (3n1w) 21268 | -2/Protoforge | Lost 9 allies 21290 | -2/Protoforge | Destroyed Striker 21293 | -2/Protoforge | Destroyed Striker 21302 | -2/Protoforge | Spotted Executioner 21307 | -2/Protoforge | Spotted Striker 21339 | -2/Protoforge | Destroyed Executioner 21343 | -2/Protoforge | Lost 7 parts (2p1n4u) 21349 | -2/Protoforge | Spotted Executioner 21364 | -2/Protoforge | Spotted Striker 21364 | -2/Protoforge | Spotted Striker 21397 | -2/Protoforge | Spotted Immortal 21402 | -2/Protoforge | Spotted Immortal 21415 | -2/Protoforge | Spotted Striker 21431 | -2/Protoforge | Spotted Executioner 21457 | -2/Protoforge | Lost 3 parts (1p2n) 21458 | -2/Protoforge | Found Adv. Kinecellerator 21477 | -2/Protoforge | Spotted Striker 21477 | -2/Protoforge | Spotted Striker 21489 | -2/Protoforge | Spotted Striker 21491 | -2/Protoforge | Found Exp. Targeting Computer 21509 | -2/Protoforge | Lost 24 allies 21514 | -2/Protoforge | Destroyed Striker 21514 | -2/Protoforge | Destroyed Striker 21541 | -2/Protoforge | Lost 3 parts (2n1w) 21581 | -2/Protoforge | Spotted Striker 21629 | -2/Protoforge | Spotted Executioner 21629 | -2/Protoforge | Spotted Executioner 21630 | -2/Protoforge | Spotted Striker 21634 | -2/Protoforge | Spotted Striker 21664 | -2/Protoforge | Installed UFD Drillbomb at designated target 21664 | -2/Protoforge | UFD reported confirmed Drillbomb installation 21665 | -2/Protoforge | UFD began Drillbomb countdown 21687 | -2/Protoforge | Spotted Striker 21687 | -2/Protoforge | Spotted Executioner 21702 | -2/Protoforge | Spotted Striker 21703 | -2/Protoforge | Spotted Striker 21733 | -2/Protoforge | Build established: Scavenger-Mutant 21735 | -2/Protoforge | Lost 7 allies 21765 | *** | Defending 0bPrime! Last Messages --------------- 21761_ Slug penetrates B-74 Champion. 21762_ 0bP_NET: Well my eulogizing is soon to be interrupted by scenes of half of Protoforge collapsing in on itself. Be careful out there. 21762_ N-04 Retriever inserts Power Sword into Forge Plexus. 21762_ N-04 Retriever inserts Imp. Armor Integrity Analyzer into Forge Plexus. 21763_ 0bP_NET: T-2! 21763_ H-88 Terminator destroyed. 21763_ N-04 Retriever inserts Hvy. Shield Leg into Forge Plexus. 21763_ N-04 Retriever inserts Flexi-carbon Leg into Forge Plexus. 21764_ 0bP_NET: And that's a wrap. 21764_ N-04 Retriever inserts Mic. Antimatter Reactor into Forge Plexus. 21764_ N-04 Retriever inserts Exp. Optical Array into Forge Plexus. 21764_ Slug penetrates B-74 Champion. Map ----- +----------------------------------------------------+ | [**!%%%%#%%% % " " % """" " " %" " | | *=!%=*![#% % %" """ % "" % " % | | !!%=!==!# %%%% "" % % """"""""" | | !![!*=/=#% %%"*" % % """"""""""""""" % | | # !# &%%%"" " """"""""""""""""" | | ### #! % % " """""""""""""""""""% | | ### # % "" " """"""""""""""""""""" | | ##### # %% %gs% """""""""""""""""""""" | | ####### # % %% " "" """"""""""""""""""""""" | | ####### # """"% " """""""""""""""""""""""" | | ######### ! "%% %%" """""""""""""""""""""""" | | ######### !"%" % "" """""""""""""""""""""""" | | ######### !% %%"% " """"""""""""""""""""""""" | | ######### /% %" " """"""""""""""""""""""""" | | ######### [*= """"""""""""""""""""""""" | | ###### %% % """"""""""""""""""""""""" | | ###### = * % % """"""""""""""""""""""""" | | ###### " """"""""""""""""""""""""" | | ###### """ " % """"""""""""""""""""""""" | | ###### " """ """"" " """"""""""""""""""""""""" | | ###### "" % """"""""""""""""""""""""" | | ###### "%%%="""""""""""""""""""""""" | | ###### [%%"""""""""""""""""""""""" | | ###### """""" "%%%"""""""""""""""""""""""" | | ###### """ " %"*%%b""""""""""""""""""""""" | | ###### " "!=@%%"""""""""""""""""""""" | | ###### "" !==!!3""""""""""""""""""""" | | ######### "" "" "!%!!=%""""""""""""""""""" | | ######### "" "" !!!*!n/""""""""""""""""" | | ######### "" """ %!% """"""""""""""" ! | | ######### " " % sSS% """"""""" | | ######### " "" %ESS %E%nnE | | ######### " " """ "" % n"SSs" s% E | | ######### " """ E SS| | | ######### " " E! | | ######### " " " " """ """ | | ######### " % """" | | ######### "" " " """ " | | ######### "" "" " % " % | | ######### " "" " | | ######### "" "" " """"" "" """ " | | ######?## "" " " " " | | ######### %" "" | | ######### "%"" " " """ "" | | ######### "" % "" """"" """" | | ####?#### """ % " " " """""""""" | | ################ ################################ | | ####?########################""""""""""""######""" | | ################################################## | | #########?######################################## | +----------------------------------------------------+ Best States ------------- Heat Dissipation 69 Energy Generation 53 Energy Capacity 950 Matter Stores 800 Matter Capacity 800 Sight Range 23 Robot Scan Range 20 Terrain Scan Range 24 Terrain Scan Density 1210 Additional Mass Support 16 Armor Coverage 450 Propulsion Shielding 15 Weapon Cycling 30 Phase Shifting 15 Evasion (%) 87 Targeting Accuracy 24 Melee Accuracy 5 Target Analysis 8 Core Analysis 12 Armor Integrity Analysis 40 Recoil Reduction 3 Kinecelleration 66 Offensive Hacking 40 Defensive Hacking 14 Authchip Count 3 Trap Extractor Capacity 6 Item Schematics ----------------- Hacking Suite | -9/Storage | Hacked Imp. Antigrav System | -6/Factory | Scanalyzed Hyp. Mass Driver | -6/Factory | Hacked Cld. Aerolev Unit | -6/Factory | Scanalyzed Imp. Powered Armor | -5/Factory | Scanalyzed Adv. Hacking Suite | -5/Factory | Hacked Lrn. Sensor Array | -5/Factory | Hacked Cmb. Gravmag System | -5/Factory | Hacked Smartbomb Launcher | -5/Factory | Hacked Assault Drone Bay | -5/Zhirov | Free Exp. Heat Sink | -5/Zhirov | Free Exp. Optical Array | -5/Zhirov | Free Imp. Arc Thrower | -5/Zhirov | Free Cmb. Linear Gravjet | -4/Factory | Hacked Lgt. Quantum Reactor | -4/Factory | Scanalyzed Neutron Missile Launcher | -4/Factory | Scanalyzed Cld. Antigrav System | -3/Testing | Hacked Exp. Focal Shield | -3/Testing | Archive Cld. Impulse Thruster | -3/Testing | Archive Centrium Light Armor Plating | -2/Quarantine | Archive Plasma Lance | -2/Quarantine | Archive Cld. Q-thruster | -2/Quarantine | Archive Robot Schematics ------------------ C-55 Analyst | -3/Testing | Archive S-43 Plague | -3/Testing | Archive Fabricated ------------ H-66 Slayer | x2 | -6/Factory | Preloaded Cld. Aerolev Unit | x1 | -5/Factory | Authchip Cld. Aerolev Unit | x1 | -5/Factory | Authchip Lrn. Sensor Array | x2 | -5/Factory | Authchip Cld. Aerolev Unit | x1 | -5/Factory | Authchip Cld. Aerolev Unit | x1 | -5/Factory | Authchip P-70 Sage | x2 | -4/Factory | Preloaded Cmb. Linear Gravjet | x2 | -4/Factory | Authchip Cmb. Linear Gravjet | x2 | -4/Factory | Authchip Adv. Hacking Suite | x1 | -4/Factory | Authchip Cmb. Linear Gravjet | x2 | -3/Research | Authchip Cmb. Linear Gravjet | x2 | -3/Research | Authchip Y-72 Warden | x2 | -3/Testing | Preloaded Repaired ---------- Lgt. Quantum Reactor | 6% | -5/Factory | Broken Alien Tech Used ----------------- Core Expander Integrated Dissipator Transdimensional Reconstructor Dimensional Node Initializer Sigix Broadsword Subatomic Replicator Achievements -------------- None Challenges ------------ None Game ------ Seed InsulatedNetworkedBoregun Manual? 0 Play Time 07:49:15 Cumulative 427.8 hours Start 2025.05.31 @ 14:37:03 End 2025.06.14 @ 20:35:07 Sessions 7 Manual Loads 0 Difficulty Rogue Special Mode None Game No. 97 Rogue 97 Adventurer 0 Explorer 0 Win Type 9 Total 31 Types 16/1/6/1/1/0/2/2/1/1 Lore% 87 Gallery% 78 Achievement% 81 Wizard Run 0 Options --------- Layout 1 ASCII 0 Keyboard 0 Movement Mouse Keybinds 0 Fullscreen 1 Font 24/Smallcaps Map View 50x35 Zoom Use 0% Tactical HUD 1 Map Filters NONE Filters NONE Steam 1 RUN: d54dd3dc-e13b-4b9c-a083-e06fd651ed75